rowid,district,candidate,affiliation,expenditure_amount,expenditure_date,recipient,city,state,zip,expenditure_type,explanation
1,House District 01,"Lontine, Susan",Democratic,15.65,1/3/19 0:00,Mailchimp,Atlandta,GA,30308,Other,Mail Maintainence
2,House District 01,"Lontine, Susan",Democratic,18.0,1/4/19 0:00,Dcpa Parking,Denver,CO,80202,Other,Parking
3,House District 01,"Lontine, Susan",Democratic,5.0,1/7/19 0:00,Uber,Denver,CO,80239,Other,Taxi
4,House District 01,"Lontine, Susan",Democratic,81.1,1/8/19 0:00,Colorado For All,Littleton,CO,80161,Contributions,Polis Sneaker Ball
5,House District 01,"Lontine, Susan",Democratic,19.7,1/14/19 0:00,Sassafrass,Denver,CO,80203,"Food, Beverages and Meals",
6,House District 01,"Lontine, Susan",Democratic,19.38,1/15/19 0:00,King Soopers,Denver,CO,80227,"Food, Beverages and Meals",
7,House District 01,"Lontine, Susan",Democratic,18.35,1/18/19 0:00,Einstein Bros,Denver,CO,80202,"Food, Beverages and Meals",
8,House District 01,"Lontine, Susan",Democratic,107.23,1/18/19 0:00,Lifestyle Photo,Arvada,CO,80005,Other,Photos For State Legislature
9,House District 01,"Lontine, Susan",Democratic,2.0,1/18/19 0:00,1St Bank,Lakewood,CO,80227,Bank Fees,
10,House District 01,"Lontine, Susan",Democratic,112.85,1/23/19 0:00,Liberty Lives Forever,Lakewood,CO,80228,Other,Books
11,House District 01,"Lontine, Susan",Democratic,9.89,1/28/19 0:00,King Soopers,Denver,CO,80227,"Food, Beverages and Meals",
12,House District 01,"Lontine, Susan",Democratic,300.0,1/30/19 0:00,Colorado Democratic Party,Denver,CO,80203,"Food, Beverages and Meals",Obama Dinner
13,House District 01,"Lontine, Susan",Democratic,87.71,1/31/19 0:00,Sub Culture,Denver,CO,80203,"Food, Beverages and Meals",
14,House District 01,"Lontine, Susan",Democratic,15.65,2/4/19 0:00,Mailchimp,Atlandta,GA,30308,Other,Mail Maintenance
15,House District 01,"Lontine, Susan",Democratic,78.01,2/11/19 0:00,City Grill,Denver,CO,80203,"Food, Beverages and Meals",
16,House District 01,"Lontine, Susan",Democratic,2.0,2/15/19 0:00,1St Bank,Lakewood,CO,80227,Bank Fees,
17,House District 01,"Lontine, Susan",Democratic,15.65,3/4/19 0:00,Mailchimp,Atlandta,GA,30308,Other,Email Maintenance
18,House District 01,"Lontine, Susan",Democratic,17.31,3/11/19 0:00,City O City Resturant,Denver,CO,80203,"Food, Beverages and Meals",
19,House District 01,"Lontine, Susan",Democratic,15.0,3/11/19 0:00,Dcpa Parking,Denver,CO,80202,Other,Parking
20,House District 01,"Lontine, Susan",Democratic,15.7,3/11/19 0:00,Big Lots #4513,Denver,CO,80123,Office Equipment & Supplies,
21,House District 01,"Lontine, Susan",Democratic,85.58,3/19/19 0:00,Office Max,Littleton,CO,80123,Office Equipment & Supplies,Printer Ink
22,House District 01,"Lontine, Susan",Democratic,2.0,3/19/19 0:00,1St Bank,Lakewood,CO,80227,Bank Fees,
23,House District 01,"Lontine, Susan",Democratic,65.27,3/25/19 0:00,City Grill,Denver,CO,80203,"Food, Beverages and Meals",
24,House District 01,"Lontine, Susan",Democratic,32.0,3/30/19 0:00,Dcpa Parking,Denver,CO,80202,Other,Parking
25,House District 01,"Lontine, Susan",Democratic,32.0,4/1/19 0:00,Focus Parking,Denver,CO,80202,Miscellaneous,Parking
26,House District 01,"Lontine, Susan",Democratic,100.0,4/1/19 0:00,Denver Democratic Central Committee,Denver,CO,80209,Contributions,Chili Dinner
27,House District 01,"Lontine, Susan",Democratic,15.65,4/3/19 0:00,Mailchimp,Atlandta,GA,30308,Other,Email Maintenance
28,House District 01,"Lontine, Susan",Democratic,6.0,4/15/19 0:00,Laz Parking,Denver,CO,80202,Miscellaneous,Parking
29,House District 01,"Lontine, Susan",Democratic,78.12,4/18/19 0:00,Sub Culture,Denver,CO,80203,"Food, Beverages and Meals",
30,House District 01,"Lontine, Susan",Democratic,2.0,4/18/19 0:00,1St Bank,Lakewood,CO,80227,Bank Fees,
31,House District 01,"Lontine, Susan",Democratic,199.0,4/28/19 0:00,Colorado Democratic Party Political Committee,Denver,CO,80203,Miscellaneous,Caucus Chair Dues
32,House District 01,"Lontine, Susan",Democratic,51.28,4/29/19 0:00,Einstein Bros,Denver,CO,80202,"Food, Beverages and Meals",
33,House District 01,"Lontine, Susan",Democratic,131.29,5/2/19 0:00,Fork And Spoon,Denver,CO,80203,"Food, Beverages and Meals",
34,House District 01,"Lontine, Susan",Democratic,15.65,5/3/19 0:00,Mailchimp,Atlandta,GA,30308,Other,Email Maintenance
35,House District 01,"Lontine, Susan",Democratic,45.77,5/6/19 0:00,Fork And Spoon,Denver,CO,80203,"Food, Beverages and Meals",
36,House District 01,"Lontine, Susan",Democratic,12.94,5/13/19 0:00,King Soopers,Denver,CO,80227,"Food, Beverages and Meals",
37,House District 01,"Lontine, Susan",Democratic,2.0,5/20/19 0:00,1St Bank,Lakewood,CO,80227,Bank Fees,
38,House District 01,"Lontine, Susan",Democratic,25.0,5/28/19 0:00,King Soopers,Denver,CO,80227,Miscellaneous,Gas
39,House District 01,"Lontine, Susan",Democratic,2.0,5/29/19 0:00,City & County Of Denver,Denver,CO,80202,Miscellaneous,Parking
40,House District 01,"Lontine, Susan",Democratic,15.65,6/3/19 0:00,Mailchimp,Atlandta,GA,30308,Other,Email Maintenance
41,House District 01,"Lontine, Susan",Democratic,25.0,6/4/19 0:00,King Soopers,Denver,CO,80227,Miscellaneous,Gas
42,House District 01,"Lontine, Susan",Democratic,2.0,6/5/19 0:00,City & County Of Denver,Denver,CO,80202,Miscellaneous,Parking
43,House District 01,"Lontine, Susan",Democratic,8.0,6/17/19 0:00,Uber,Denver,CO,80239,Miscellaneous,Transportation
44,House District 01,"Lontine, Susan",Democratic,2.0,6/18/19 0:00,1St Bank,Lakewood,CO,80227,Bank Fees,
45,House District 01,"Lontine, Susan",Democratic,25.0,6/19/19 0:00,King Soopers,Denver,CO,80227,Miscellaneous,Gas
46,House District 01,"Lontine, Susan",Democratic,150.0,6/26/19 0:00,Jw Marriott,Denver,CO,80206,Miscellaneous,Ncsl Seminar Fees
47,House District 01,"Lontine, Susan",Democratic,31.9,6/28/19 0:00,Wynkoop Restaurant,Denver,CO,80202,"Food, Beverages and Meals",
48,House District 01,"Lontine, Susan",Democratic,170.95,7/1/19 0:00,Wix,Nyew York City,NY,10011,Miscellaneous,Website
49,House District 01,"Lontine, Susan",Democratic,15.65,7/3/19 0:00,Mailchimp,Atlandta,GA,30308,Miscellaneous,Email Service
50,House District 01,"Lontine, Susan",Democratic,25.0,7/8/19 0:00,King Soopers,Denver,CO,80227,Miscellaneous,Fuel
51,House District 01,"Lontine, Susan",Democratic,25.0,7/18/19 0:00,King Soopers,Denver,CO,80227,Miscellaneous,Gas- Fuel
52,House District 01,"Lontine, Susan",Democratic,2.0,7/19/19 0:00,1St Bank,Lakewood,CO,80227,Bank Fees,
53,House District 01,"Lontine, Susan",Democratic,14.59,7/26/19 0:00,Bighorn,Keystone,CO,80435,"Food, Beverages and Meals",
54,House District 01,"Lontine, Susan",Democratic,30.0,7/29/19 0:00,Tiki Bar,Dillon,CO,80435,"Food, Beverages and Meals",
55,House District 01,"Lontine, Susan",Democratic,25.0,7/29/19 0:00,King Soopers,Denver,CO,80227,Miscellaneous,Fuel - Gas
56,House District 01,"Lontine, Susan",Democratic,15.65,8/5/19 0:00,Mailchimp,Atlandta,GA,30308,Miscellaneous,Email Maintenance
57,House District 01,"Lontine, Susan",Democratic,25.0,8/8/19 0:00,King Soopers,Denver,CO,80227,Miscellaneous,Fuel-Gas
58,House District 01,"Lontine, Susan",Democratic,11.85,8/19/19 0:00,Actblue,Somerville,MA,2144,Fundraising Expenses,
59,House District 01,"Lontine, Susan",Democratic,2.0,8/20/19 0:00,1St Bank,Lakewood,CO,80227,Bank Fees,
60,House District 01,"Lontine, Susan",Democratic,27.2,8/21/19 0:00,King Soopers,Littleton,CO,80123,Miscellaneous,Fuel-Gas
61,House District 01,"Lontine, Susan",Democratic,15.65,9/3/19 0:00,Mailchimp,Atlandta,GA,30308,Miscellaneous,Email Maintenace
62,House District 01,"Lontine, Susan",Democratic,2.0,9/4/19 0:00,City Of Denver,Denver,CO,80203,Miscellaneous,Parking
63,House District 01,"Lontine, Susan",Democratic,1.25,9/6/19 0:00,City Of Denver,Denver,CO,80203,Miscellaneous,Parking
64,House District 01,"Lontine, Susan",Democratic,10.21,9/6/19 0:00,Circle K #44086,Denver,CO,80203,"Food, Beverages and Meals",
65,House District 01,"Lontine, Susan",Democratic,25.0,9/9/19 0:00,King Soopers,Denver,CO,80227,Miscellaneous,Fuel-Gas
66,House District 01,"Lontine, Susan",Democratic,2.0,9/11/19 0:00,City Of Denver,Denver,CO,80203,Miscellaneous,Parking
67,House District 01,"Lontine, Susan",Democratic,12.0,9/13/19 0:00,Dcpa Parking,Denver,CO,80202,Miscellaneous,Parking
68,House District 01,"Lontine, Susan",Democratic,115.0,9/16/19 0:00,Denver Democratic Central Committee,Denver,CO,80209,Contributions,
69,House District 01,"Lontine, Susan",Democratic,34.38,9/17/19 0:00,King Soopers,Denver,CO,80227,Miscellaneous,Fuel-Gas
70,House District 01,"Lontine, Susan",Democratic,7.0,9/17/19 0:00,Dcpa Parking,Denver,CO,80202,Miscellaneous,Parking
71,House District 01,"Lontine, Susan",Democratic,2.0,9/18/19 0:00,1St Bank,Lakewood,CO,80227,Bank Fees,
72,House District 01,"Lontine, Susan",Democratic,82.0,9/18/19 0:00,Frontier Airline,Denver,CO,80249,Miscellaneous,Bags Fee
73,House District 01,"Lontine, Susan",Democratic,19.79,9/23/19 0:00,Food Hall,Arlington,VA,20330,"Food, Beverages and Meals",
74,House District 01,"Lontine, Susan",Democratic,10.5,9/23/19 0:00,Rtd-Denver,Denver,CO,80202,Miscellaneous,Rtd A Line Tranporttion
75,House District 01,"Lontine, Susan",Democratic,29.33,9/24/19 0:00,King Soopers,Littleton,CO,80123,Miscellaneous,Fuel-Gas
76,House District 01,"Lontine, Susan",Democratic,19.02,9/25/19 0:00,Uber,Denver,CO,80239,Miscellaneous,Transportation
77,House District 01,"Lontine, Susan",Democratic,48.35,9/26/19 0:00,Momofuka Food,Washington,DC,20001,"Food, Beverages and Meals",
78,House District 01,"Lontine, Susan",Democratic,30.7,9/27/19 0:00,Uber,Denver,CO,80239,Miscellaneous,Transporttion Dc
79,House District 01,"Lontine, Susan",Democratic,10.99,9/30/19 0:00,Food Hall,Arlington,VA,20330,"Food, Beverages and Meals",
80,House District 01,"Lontine, Susan",Democratic,6.5,9/30/19 0:00,Uber,Denver,CO,80239,Miscellaneous,Transportation Dc
81,House District 01,"Lontine, Susan",Democratic,1346.21,12/1/18 0:00,Colorado Democratic Party,Denver,CO,80203,Advertising,Direct Mail
82,House District 01,"Lontine, Susan",Democratic,15.55,12/3/18 0:00,Mailchimp,Atlandta,GA,30308,Other,Mail Maintencance
83,House District 01,"Lontine, Susan",Democratic,12.87,12/4/18 0:00,Broadmoor Food,Colorao Springs,CO,80906,"Food, Beverages and Meals",
84,House District 01,"Lontine, Susan",Democratic,34.23,12/5/18 0:00,Shish Kabob Grill,Denver,CO,80203,"Food, Beverages and Meals",
85,House District 01,"Lontine, Susan",Democratic,20.66,12/6/18 0:00,Uber,Denver,CO,80239,Other,Transportation
86,House District 01,"Lontine, Susan",Democratic,5.0,12/6/18 0:00,Uber,Denver,CO,80239,Other,Transportation
87,House District 01,"Lontine, Susan",Democratic,450.72,12/10/18 0:00,Hyattregency Hotel,Washington,DC,20001,Travel & Lodging,Conference Ncls
88,House District 01,"Lontine, Susan",Democratic,25.34,12/11/18 0:00,King Soopers,Littleton,CO,80123,Other,Gas
89,House District 01,"Lontine, Susan",Democratic,1.0,12/12/18 0:00,City Of Denver,Denver,CO,80203,Miscellaneous,Parking
90,House District 01,"Lontine, Susan",Democratic,2.0,12/18/18 0:00,1St Bank,Lakewood,CO,80227,Bank Fees,
91,House District 01,"Lontine, Susan",Democratic,34.19,1/1/20 0:00,King Soopers,Littleton,CO,80123,Other,Gas/Fuel
92,House District 01,"Lontine, Susan",Democratic,20.85,1/3/20 0:00,Mailchimp,Atlandta,GA,30308,Other,Email Maintenance
93,House District 01,"Lontine, Susan",Democratic,9.71,1/6/20 0:00,Quiznos #17,Denver,CO,80204,"Food, Beverages and Meals",
94,House District 01,"Lontine, Susan",Democratic,27.83,1/8/20 0:00,King Soopers,Denver,CO,80227,Other,Fuel-Gas
95,House District 01,"Lontine, Susan",Democratic,19.0,1/9/20 0:00,Grand Hyatt Parking,Denver,CO,80202,Other,Parking
96,House District 01,"Lontine, Susan",Democratic,12.38,1/13/20 0:00,Target Stores,Sheridan,CO,80110,Office Equipment & Supplies,
97,House District 01,"Lontine, Susan",Democratic,23.54,1/13/20 0:00,Mad Greens,Denver,CO,80202,"Food, Beverages and Meals",
98,House District 01,"Lontine, Susan",Democratic,2.0,1/21/20 0:00,1St Bank,Lakewood,CO,80227,Bank Fees,
99,House District 01,"Lontine, Susan",Democratic,20.85,2/3/20 0:00,Mail Chimp,Atlanta,GA,30308,Other,Email Maintenance
100,House District 01,"Lontine, Susan",Democratic,24.77,2/7/20 0:00,King Soopers,Denver,CO,80227,Other,Fuel-Gas
101,House District 01,"Lontine, Susan",Democratic,2.0,2/18/20 0:00,1St Bank,Lakewood,CO,80227,Bank Fees,
102,House District 01,"Lontine, Susan",Democratic,200.0,3/2/20 0:00,Ngpvan,Washington Dc,CO,20005,Consultant & Professional Services,Ngpvan
103,House District 01,"Lontine, Susan",Democratic,20.85,3/3/20 0:00,Mail Chimp,Atlanta,GA,30308,Other,Email Maintenance
104,House District 01,"Lontine, Susan",Democratic,62.0,3/13/20 0:00,Mad Greens,Denver,CO,80202,"Food, Beverages and Meals",
105,House District 01,"Lontine, Susan",Democratic,2.0,3/19/20 0:00,1St Bank,Lakewood,CO,80227,Bank Fees,
106,House District 01,"Lontine, Susan",Democratic,100.0,3/27/20 0:00,Rachel  Wiggins,Denver,CO,80218,Consultant & Professional Services,
107,House District 01,"Lontine, Susan",Democratic,20.85,5/4/20 0:00,Mailchimp,Atlandta,GA,30308,Other,Email Maintenance
108,House District 01,"Lontine, Susan",Democratic,2.0,5/18/20 0:00,1St Bank,Lakewood,CO,80227,Bank Fees,
109,House District 01,"Lontine, Susan",Democratic,20.85,6/3/20 0:00,Mailchimp,Atlandta,GA,30308,Other,Email Maintenance
110,House District 01,"Lontine, Susan",Democratic,14.95,6/12/20 0:00,Wix,Nyew York City,NY,10011,Other,Website Maintenance
111,House District 01,"Lontine, Susan",Democratic,2.0,6/18/20 0:00,1St Bank,Lakewood,CO,80227,Bank Fees,
112,House District 01,"Lontine, Susan",Democratic,25.0,6/23/20 0:00,King Soopers,Littleton,CO,80123,Other,Gas-Fuel
113,House District 01,"Lontine, Susan",Democratic,156.0,6/30/20 0:00,Wix,Nyew York City,NY,10011,Other,Website Maintenance
114,House District 01,"Lontine, Susan",Democratic,20.85,7/3/20 0:00,Mailchimp,Atlandta,GA,30308,Other,Email Maintenance
115,House District 01,"Lontine, Susan",Democratic,25.0,7/13/20 0:00,King Soopers,Denver,CO,80227,Other,Gas-Fuel
116,House District 01,"Lontine, Susan",Democratic,15.8,7/16/20 0:00,Actblue,Somerville,MA,2144,Bank Fees,
117,House District 01,"Lontine, Susan",Democratic,0.99,7/16/20 0:00,Actblue,Somerville,MA,2144,Bank Fees,
118,House District 01,"Lontine, Susan",Democratic,22.48,7/16/20 0:00,King Soopers,Littleton,CO,80123,Other,Gas-Fuel
119,House District 01,"Lontine, Susan",Democratic,2.0,7/21/20 0:00,1St Bank,Lakewood,CO,80227,Bank Fees,
120,House District 01,"Lontine, Susan",Democratic,20.0,7/30/20 0:00,King Soopers,Denver,CO,80227,Other,Fuel-Gas
121,House District 01,"Lontine, Susan",Democratic,20.85,8/3/20 0:00,Mailchimp,Atlandta,GA,30308,Other,Email Maintenance
122,House District 01,"Lontine, Susan",Democratic,6.72,8/5/20 0:00,Actblue,Somerville,MA,2144,Bank Fees,
123,House District 01,"Lontine, Susan",Democratic,7.9,8/10/20 0:00,Actblue,Somerville,MA,2144,Bank Fees,
124,House District 01,"Lontine, Susan",Democratic,25.26,8/13/20 0:00,King Soopers,Denver,CO,80227,Other,Fuel-Gas
125,House District 01,"Lontine, Susan",Democratic,6.37,8/15/20 0:00,Actblue,Somerville,MA,2144,Bank Fees,
126,House District 01,"Lontine, Susan",Democratic,2.0,8/18/20 0:00,1St Bank,Lakewood,CO,80227,Bank Fees,
127,House District 01,"Lontine, Susan",Democratic,29.5,8/21/20 0:00,Sputnik,Denver,CO,80209,"Food, Beverages and Meals",
128,House District 01,"Lontine, Susan",Democratic,24.69,8/31/20 0:00,King Soopers,Denver,CO,80227,Other,Fuel-Gas
129,House District 01,"Lontine, Susan",Democratic,20.85,9/3/20 0:00,Mailchimp,Atlandta,GA,30308,Other,Email Maintenance
130,House District 01,"Lontine, Susan",Democratic,22.12,9/14/20 0:00,King Soopers,Denver,CO,80227,Other,Fuel-Gas
131,House District 01,"Lontine, Susan",Democratic,3849.16,9/16/20 0:00,C & D Printing,Denver,CO,80212,Other,Direct Mail Piece & Postcards
132,House District 01,"Lontine, Susan",Democratic,100.0,9/18/20 0:00,Rachel  Wiggins,Denver,CO,80218,Consultant & Professional Services,
133,House District 01,"Lontine, Susan",Democratic,2000.0,9/20/20 0:00,Colorado Democratic Party,Denver,CO,80203,Contributions,Hmp
134,House District 01,"Lontine, Susan",Democratic,28.0,9/21/20 0:00,King Soopers,Denver,CO,80227,Other,Fuel-Gas
135,House District 01,"Lontine, Susan",Democratic,70.55,9/21/20 0:00,U.S Post Office,Denver,CO,80219,Office Equipment & Supplies,Stamps
136,House District 01,"Lontine, Susan",Democratic,3.72,9/22/20 0:00,Target Stores,Sheridan,CO,80110,Office Equipment & Supplies,
137,House District 01,"Lontine, Susan",Democratic,94.5,9/22/20 0:00,Fedex Office,Littleton,CO,80123,Office Equipment & Supplies,
138,House District 01,"Lontine, Susan",Democratic,34.99,9/30/20 0:00,Actblue,Somerville,MA,2144,Bank Fees,
139,House District 01,"Lontine, Susan",Democratic,25.0,10/2/20 0:00,King Soopers,Denver,CO,80227,Other,Fuel-Gas
140,House District 01,"Lontine, Susan",Democratic,20.85,10/3/19 0:00,Mailchimp,Atlandta,GA,30308,Other,Email Maintenance
141,House District 01,"Lontine, Susan",Democratic,13.83,10/5/20 0:00,Actblue,Somerville,MA,2144,Bank Fees,
142,House District 01,"Lontine, Susan",Democratic,20.85,10/5/20 0:00,Mailchimp,Atlandta,GA,30308,Other,Email Maintenance
143,House District 01,"Lontine, Susan",Democratic,30.0,10/7/19 0:00,King Soopers,Littleton,CO,80123,Other,Fuel-Gas
144,House District 01,"Lontine, Susan",Democratic,1000.0,10/7/20 0:00,Colorado Democratic Party: Support Colo Democratic Candidates,Denver,CO,80203,Contributions,
145,House District 01,"Lontine, Susan",Democratic,20.4,10/10/19 0:00,Boars Head Reagan Airport,Arlington,VA,22202,"Food, Beverages and Meals",
146,House District 01,"Lontine, Susan",Democratic,10.01,10/11/19 0:00,Starbucks,Washington,DC,20036,"Food, Beverages and Meals",
147,House District 01,"Lontine, Susan",Democratic,34.6,10/11/19 0:00,La Boqueria,Washington,DC,20036,"Food, Beverages and Meals",
148,House District 01,"Lontine, Susan",Democratic,38.15,10/13/20 0:00,Us Post Office,Denver,CO,80219,Office Equipment & Supplies,Stamps
149,House District 01,"Lontine, Susan",Democratic,27.51,10/13/20 0:00,King Soopers,Denver,CO,80227,Other,Fuel-Gas
150,House District 01,"Lontine, Susan",Democratic,17.71,10/15/19 0:00,Scultpture Garden Restaurant,Washington,DC,20036,"Food, Beverages and Meals",
151,House District 01,"Lontine, Susan",Democratic,20.24,10/15/19 0:00,Taxi Service,Washington,DC,20010,Other,Taxi
152,House District 01,"Lontine, Susan",Democratic,29.46,10/16/19 0:00,King Soopers,Denver,CO,80227,Other,Gas-Fuel
153,House District 01,"Lontine, Susan",Democratic,2.0,10/16/20 0:00,City Of Denver,Denver,CO,80203,Other,Parking
154,House District 01,"Lontine, Susan",Democratic,2.0,10/17/19 0:00,City Of Denver,Denver,CO,80203,Other,Parking Meter
155,House District 01,"Lontine, Susan",Democratic,2.0,10/18/19 0:00,1St Bank,Lakewood,CO,80227,Bank Fees,
156,House District 01,"Lontine, Susan",Democratic,2.0,10/20/20 0:00,1St Bank,Lakewood,CO,80227,Bank Fees,
157,House District 01,"Lontine, Susan",Democratic,428.0,10/21/20 0:00,Harvey Park Community Organization,Denver,CO,80236,Advertising,
158,House District 01,"Lontine, Susan",Democratic,32.16,10/23/19 0:00,King Soopers,Littleton,CO,80123,Other,Gas-Fuel
159,House District 01,"Lontine, Susan",Democratic,21.94,10/26/20 0:00,King Soopers,Denver,CO,80227,Other,Gas-Fuel
160,House District 01,"Lontine, Susan",Democratic,140.75,10/26/20 0:00,Apple Products,Cupertino,CA,95014,Office Equipment & Supplies,License
161,House District 01,"Lontine, Susan",Democratic,30.62,10/27/20 0:00,Actblue,Somerville,MA,2144,Bank Fees,
162,House District 01,"Lontine, Susan",Democratic,1406.95,10/30/20 0:00,Apple Products,Cupertino,CA,95014,Office Equipment & Supplies,
163,House District 01,"Lontine, Susan",Democratic,31.37,10/31/19 0:00,King Soopers,Littleton,CO,80123,Other,Gas-Fuel
164,House District 01,"Lontine, Susan",Democratic,35.0,11/1/19 0:00,Hyattregency,Debver,CO,80202,Other,Parking
165,House District 01,"Lontine, Susan",Democratic,2.0,11/2/20 0:00,City & County Of Denver,Denver,CO,80202,Other,Parking Meter
166,House District 01,"Lontine, Susan",Democratic,13.02,11/2/20 0:00,Ngpvan,Washington Dc,CO,20005,Consultant & Professional Services,
167,House District 01,"Lontine, Susan",Democratic,100.0,11/3/20 0:00,Rachel  Wiggins,Denver,CO,80218,Consultant & Professional Services,
168,House District 01,"Lontine, Susan",Democratic,20.85,11/3/20 0:00,Mailchimp,Atlandta,GA,30308,Other,Email Maintenance
169,House District 01,"Lontine, Susan",Democratic,20.85,11/4/19 0:00,Mailchimp,Atlandta,GA,30308,Other,Email Maintenance
170,House District 01,"Lontine, Susan",Democratic,134.0,11/4/19 0:00,U.S.P.S.,Denver,CO,80219,Other,Yearly Po Box Rental
171,House District 01,"Lontine, Susan",Democratic,15.0,11/4/20 0:00,Paypal,Sabn Jose,CA,95131,Miscellaneous,Publication
172,House District 01,"Lontine, Susan",Democratic,26.82,11/5/19 0:00,Ngpvan,Washington Dc,CO,20005,Other,Messaging Service Election Day Reminder
173,House District 01,"Lontine, Susan",Democratic,148.0,11/5/20 0:00,U.S.P.S.,Denver,CO,80219,Other,Po Box Rental Fee
174,House District 01,"Lontine, Susan",Democratic,95.0,11/7/19 0:00,Attendify,Scottsdale,AZ,85251,Other,Registration Fee
175,House District 01,"Lontine, Susan",Democratic,25.0,11/12/19 0:00,King Soopers,Denver,CO,80227,Other,Gas-Fuel
176,House District 01,"Lontine, Susan",Democratic,20.0,11/12/19 0:00,Four Season Hotel Parking,Denver,CO,80202,Other,Parking
177,House District 01,"Lontine, Susan",Democratic,19.68,11/12/19 0:00,Angel Restaurant,Hyattsville,MD,20784,"Food, Beverages and Meals",
178,House District 01,"Lontine, Susan",Democratic,33.5,11/13/19 0:00,Unconventional Diner,Washington,DC,20001,"Food, Beverages and Meals",
179,House District 01,"Lontine, Susan",Democratic,10.23,11/14/19 0:00,Marriott Metro Center,Washington,DC,20005,"Food, Beverages and Meals",
180,House District 01,"Lontine, Susan",Democratic,16.46,11/14/19 0:00,Hudson St,Washington,DC,20036,"Food, Beverages and Meals",
181,House District 01,"Lontine, Susan",Democratic,26.01,11/14/19 0:00,Uber,Denver,CO,80239,Other,Transportation
182,House District 01,"Lontine, Susan",Democratic,61.6,11/15/19 0:00,Marriott Metro Center,Washington,DC,20005,"Food, Beverages and Meals",
183,House District 01,"Lontine, Susan",Democratic,32.88,11/16/19 0:00,King Soopers,Littleton,CO,80123,Other,Gas-Fuel
184,House District 01,"Lontine, Susan",Democratic,24.01,11/16/20 0:00,King Soopers,Denver,CO,80227,Other,Fuel-Gas
185,House District 01,"Lontine, Susan",Democratic,2.0,11/17/20 0:00,1St Bank,Lakewood,CO,80227,Bank Fees,
186,House District 01,"Lontine, Susan",Democratic,22.7,11/18/19 0:00,Grille Dsistrict,Washington,DC,22202,"Food, Beverages and Meals",
187,House District 01,"Lontine, Susan",Democratic,2.0,11/18/19 0:00,1St Bank,Lakewood,CO,80227,Bank Fees,
188,House District 01,"Lontine, Susan",Democratic,300.0,11/18/19 0:00,Colorado Health Foundation,Denver,CO,80203,Contributions,
189,House District 01,"Lontine, Susan",Democratic,343.0,11/20/19 0:00,House Democratic Petty Cash Fund,Denver,CO,80203,Other,Caucus Dues
190,House District 01,"Lontine, Susan",Democratic,33.05,11/25/19 0:00,King Soopers,Denver,CO,80227,Other,Gas-Fuel
191,House District 01,"Lontine, Susan",Democratic,32.0,11/26/19 0:00,Oxford Hotel,Denver,CO,80202,"Food, Beverages and Meals",
192,House District 01,"Lontine, Susan",Democratic,20.85,12/3/19 0:00,Mailchimp,Atlandta,GA,30308,Other,Email Maintenance
193,House District 01,"Lontine, Susan",Democratic,25.0,12/3/19 0:00,King Soopers,Littleton,CO,80123,Other,Gas-Fuel
194,House District 01,"Lontine, Susan",Democratic,4.26,12/9/19 0:00,Royal Palms,Phoenix,AZ,85018,"Food, Beverages and Meals",
195,House District 01,"Lontine, Susan",Democratic,24.75,12/9/19 0:00,Uber,Denver,CO,80239,Other,Uber
196,House District 01,"Lontine, Susan",Democratic,450.0,12/11/19 0:00,Colorado Democratic Party,Denver,CO,80203,"Food, Beverages and Meals",Obama Dinner Via Actblue
197,House District 01,"Lontine, Susan",Democratic,35.56,12/16/19 0:00,King Soopers,Denver,CO,80227,Other,Gas-Fuel
198,House District 01,"Lontine, Susan",Democratic,2.0,12/18/19 0:00,1St Bank,Lakewood,CO,80227,Bank Fees,
199,House District 01,"Koch, Samantha",Republican,265.34,6/10/20 0:00,Printplace,Arlington,TX,76011,Advertising,"Doorhangers To Distribute While Canvassing.
Printplace"
200,House District 01,"Koch, Samantha",Republican,84.43,6/25/20 0:00,Target,Sheridan,CO,80110,Advertising,"Campaign Supplies - Markers, Water Bottles, Granola Bars - Canvassing Materials"
201,House District 01,"Koch, Samantha",Republican,48.38,7/6/20 0:00,Gas Express,Littleton,CO,80123,Travel & Lodging,Fuel
202,House District 01,"Koch, Samantha",Republican,283.12,8/25/20 0:00,Samantha  Koch,Denver,CO,80222,Advertising,Doorhangers For Campaign Canvassing
203,House District 01,"Koch, Samantha",Republican,283.12,8/25/20 0:00,Printplace,Arlington,TX,76011,Advertising,"Doorhangers For Canvassing
Printplace"
204,House District 01,"Koch, Samantha",Republican,1587.5,9/8/20 0:00,Salem Media,Aurora,CO,80114,Advertising,"Digital Advertising Campaign - Salem Mediasubtotal: $1587.50Tax: $0.00Shipping: $0.00Total: $1587.50
Kbjd-Am--Knus-Krks-Am-"
205,House District 01,"Koch, Samantha",Republican,103.72,9/8/20 0:00,Samantha  Koch,Denver,CO,80222,"Food, Beverages and Meals","Campaign Eventchalkwalk With The Colorado Health Choice Alliancepurchase Of Supplies - Chalk, Markers, Poster Board, Bottled Water, Granola Bars."
206,House District 01,"Koch, Samantha",Republican,1200.0,9/25/20 0:00,Trey  Taylor,Aurora,CO,80113,Advertising,Deposit For Fundraising Event On 10/12 With Country Artist.
207,House District 01,"Koch, Samantha",Republican,696.75,9/28/20 0:00,Printplace,Arlington,TX,76011,Advertising,Purchase Of Doorhangers For Campaign Canvassing
208,House District 01,"Koch, Samantha",Republican,362.37,10/13/20 0:00,Printplace,Arlington,TX,76011,Advertising,Doorhangers And Yard Signs For Canvassing.
209,House District 01,"Koch, Samantha",Republican,195.17,10/13/20 0:00,King Soopers,Littleton,CO,80127,Fundraising Expenses,"Food Purchase For Fundraiser - Party Trays, Beverages, Plastic Wear, Dessert."
210,House District 01,"Koch, Samantha",Republican,1412.5,10/19/20 0:00,Salem Media,Aurora,CO,80114,Advertising,Campaign Digital Advertising With Salem Media
211,House District 01,"Koch, Samantha",Republican,34.0,10/20/20 0:00,Salem Media,Aurora,CO,80114,Bank Fees,Nsf Fee For Campaign Advertising Charge From Salem Media
212,House District 01,"Koch, Samantha",Republican,325.0,11/2/20 0:00,Facebook,Menlo Park,CA,94025,Advertising,Ad Advertising On Facebook
213,House District 02,"Garnett, Alec",Democratic,337.6,1/1/19 0:00,,,,,Office Equipment & Supplies,
214,House District 02,"Garnett, Alec",Democratic,243.3,1/9/19 0:00,Blue Sneaker Ball,San Francisco,CA,94103,Other,Blue Sneaker Ball
215,House District 02,"Garnett, Alec",Democratic,96.75,1/9/19 0:00,Jimmy Johns,Denver,CO,80202,"Food, Beverages and Meals",
216,House District 02,"Garnett, Alec",Democratic,250.0,1/10/19 0:00,Colorado Democratic Party,Denver,CO,80203,Other,Obama Dinner Tickets
217,House District 02,"Garnett, Alec",Democratic,250.0,1/16/19 0:00,Denver Democratic Central Committee,Denver,CO,80209,Other,House District 2 Democrats
218,House District 02,"Garnett, Alec",Democratic,181.96,1/18/19 0:00,Flights Wine And Coffee,Arvada,CO,80007,"Food, Beverages and Meals",
219,House District 02,"Garnett, Alec",Democratic,39.46,1/18/19 0:00,Jimmy Johns,Denver,CO,80202,"Food, Beverages and Meals",
220,House District 02,"Garnett, Alec",Democratic,225.0,1/22/19 0:00,Max'S Wine Dive,Denver,CO,80203,"Food, Beverages and Meals",
221,House District 02,"Garnett, Alec",Democratic,40.0,1/22/19 0:00,Jimmy Johns,Denver,CO,80202,"Food, Beverages and Meals",
222,House District 02,"Garnett, Alec",Democratic,85.33,2/1/19 0:00,City Grill,Denver,CO,80203,"Food, Beverages and Meals",
223,House District 02,"Garnett, Alec",Democratic,54.0,2/1/19 0:00,Sp Plus Parking,Chicago,IL,60601,Office Equipment & Supplies,
224,House District 02,"Garnett, Alec",Democratic,42.58,2/1/19 0:00,City Grill,Denver,CO,80203,"Food, Beverages and Meals",
225,House District 02,"Garnett, Alec",Democratic,38.13,2/1/19 0:00,Jimmy Johns,Denver,CO,80202,"Food, Beverages and Meals",
226,House District 02,"Garnett, Alec",Democratic,300.0,2/4/19 0:00,Office Max,Denver,CO,80203,Office Equipment & Supplies,
227,House District 02,"Garnett, Alec",Democratic,30.34,2/8/19 0:00,Go Daddy Inc,Scottsdale,AZ,85260,Office Equipment & Supplies,
228,House District 02,"Garnett, Alec",Democratic,33.64,2/11/19 0:00,Jimmy Johns,Denver,CO,80202,"Food, Beverages and Meals",
229,House District 02,"Garnett, Alec",Democratic,70.45,2/14/19 0:00,Dominos,Denver,CO,80202,"Food, Beverages and Meals",
230,House District 02,"Garnett, Alec",Democratic,100.38,2/25/19 0:00,Shish Kebob Grill,Denver,CO,80203,"Food, Beverages and Meals",
231,House District 02,"Garnett, Alec",Democratic,55.46,2/25/19 0:00,Mad Greens,Denver,CO,80202,"Food, Beverages and Meals",
232,House District 02,"Garnett, Alec",Democratic,30.92,2/27/19 0:00,City Grill,Denver,CO,80203,"Food, Beverages and Meals",
233,House District 02,"Garnett, Alec",Democratic,290.8,2/28/19 0:00,,,,,Office Equipment & Supplies,
234,House District 02,"Garnett, Alec",Democratic,238.85,3/4/19 0:00,Sexy Pizza,Denver,CO,80218,"Food, Beverages and Meals",
235,House District 02,"Garnett, Alec",Democratic,122.74,3/4/19 0:00,Mad Greens,Denver,CO,80202,"Food, Beverages and Meals",
236,House District 02,"Garnett, Alec",Democratic,64.92,3/4/19 0:00,Sexy Pizza,Denver,CO,80218,"Food, Beverages and Meals",
237,House District 02,"Garnett, Alec",Democratic,30.75,3/4/19 0:00,Jimmy Johns,Denver,CO,80202,"Food, Beverages and Meals",
238,House District 02,"Garnett, Alec",Democratic,39.87,3/11/19 0:00,Jimmy Johns,Denver,CO,80202,"Food, Beverages and Meals",
239,House District 02,"Garnett, Alec",Democratic,85.56,3/25/19 0:00,Walmart,Denver,CO,80207,Office Equipment & Supplies,
240,House District 02,"Garnett, Alec",Democratic,40.0,3/28/19 0:00,City Grill,Denver,CO,80203,"Food, Beverages and Meals",
241,House District 02,"Garnett, Alec",Democratic,447.87,3/31/19 0:00,,,,,Office Equipment & Supplies,
242,House District 02,"Garnett, Alec",Democratic,117.58,4/8/19 0:00,Rocky Mountain Bottled Water,Littleton,CO,80122,"Food, Beverages and Meals",
243,House District 02,"Garnett, Alec",Democratic,67.23,4/12/19 0:00,City Grill,Denver,CO,80203,"Food, Beverages and Meals",
244,House District 02,"Garnett, Alec",Democratic,154.81,4/15/19 0:00,Hopdoddy,Denver,CO,80202,"Food, Beverages and Meals",
245,House District 02,"Garnett, Alec",Democratic,57.24,4/22/19 0:00,Tokyo Joes,Denver,CO,80203,"Food, Beverages and Meals",
246,House District 02,"Garnett, Alec",Democratic,61.93,4/29/19 0:00,Jimmy Johns,Denver,CO,80202,"Food, Beverages and Meals",
247,House District 02,"Garnett, Alec",Democratic,524.59,4/30/19 0:00,,,,,Miscellaneous,
248,House District 02,"Garnett, Alec",Democratic,76.7,5/1/19 0:00,Argonaut,Denver,CO,80203,"Food, Beverages and Meals",
249,House District 02,"Garnett, Alec",Democratic,120.0,5/16/19 0:00,Weebly,San Francisco,CA,94133,Office Equipment & Supplies,
250,House District 02,"Garnett, Alec",Democratic,300.7,5/31/19 0:00,,,,,Miscellaneous,
251,House District 02,"Garnett, Alec",Democratic,69.02,6/10/19 0:00,City Grill,Denver,CO,80203,Office Equipment & Supplies,
252,House District 02,"Garnett, Alec",Democratic,44.26,6/11/19 0:00,Whole Foods,Denver,CO,80218,Office Equipment & Supplies,
253,House District 02,"Garnett, Alec",Democratic,69.84,6/17/19 0:00,Whole Foods,Denver,CO,80218,Office Equipment & Supplies,
254,House District 02,"Garnett, Alec",Democratic,606.75,6/30/19 0:00,,,,,Miscellaneous,
255,House District 02,"Garnett, Alec",Democratic,234.69,7/5/19 0:00,King Soopers,Denver,CO,80218,"Food, Beverages and Meals",
256,House District 02,"Garnett, Alec",Democratic,160.07,7/5/19 0:00,Target,Glendale,CO,80426,"Food, Beverages and Meals",
257,House District 02,"Garnett, Alec",Democratic,125.16,7/9/19 0:00,Santiagos Mexican Restaurant,Denver,CO,80204,"Food, Beverages and Meals",
258,House District 02,"Garnett, Alec",Democratic,34.0,7/10/19 0:00,Expedia,Bellevue,WA,98004,Travel & Lodging,
259,House District 02,"Garnett, Alec",Democratic,476.6,7/11/19 0:00,United Airlines,Wacker,IL,60606,Travel & Lodging,
260,House District 02,"Garnett, Alec",Democratic,34.16,7/11/19 0:00,Prohibition,Denver,CO,80203,"Food, Beverages and Meals",
261,House District 02,"Garnett, Alec",Democratic,40.49,7/22/19 0:00,Uber,San Francisco,CA,94105,Travel & Lodging,
262,House District 02,"Garnett, Alec",Democratic,88.9,7/22/19 0:00,Uber,San Francisco,CA,94105,Travel & Lodging,
263,House District 02,"Garnett, Alec",Democratic,39.43,7/23/19 0:00,Ivy,Denver,CO,80203,"Food, Beverages and Meals",
264,House District 02,"Garnett, Alec",Democratic,93.94,7/26/19 0:00,Uber,San Francisco,CA,94105,Travel & Lodging,
265,House District 02,"Garnett, Alec",Democratic,41.47,7/26/19 0:00,Park And Co,Denver,CO,80203,"Food, Beverages and Meals",
266,House District 02,"Garnett, Alec",Democratic,109.23,7/31/19 0:00,Safeway,Denver,CO,80218,"Food, Beverages and Meals",
267,House District 02,"Garnett, Alec",Democratic,644.97,7/31/19 0:00,,,,,Other,Non-Monetized Expenses
268,House District 02,"Garnett, Alec",Democratic,68.73,8/6/19 0:00,Uber,San Francisco,CA,94105,Travel & Lodging,
269,House District 02,"Garnett, Alec",Democratic,50.0,8/12/19 0:00,Capitol Hill United Neighborhood,Denver,CO,80218,Contributions,
270,House District 02,"Garnett, Alec",Democratic,150.0,8/19/19 0:00,B'Nai B'Rith Colorado,Denver,CO,80246,Contributions,
271,House District 02,"Garnett, Alec",Democratic,51.82,8/20/19 0:00,Argonaut,Denver,CO,80203,Fundraising Expenses,
272,House District 02,"Garnett, Alec",Democratic,32.77,8/26/19 0:00,Whole Foods,Denver,CO,80218,Fundraising Expenses,
273,House District 02,"Garnett, Alec",Democratic,62.92,8/26/19 0:00,Big Trouble,Denver,CO,80216,"Food, Beverages and Meals",
274,House District 02,"Garnett, Alec",Democratic,155.0,8/26/19 0:00,Sarah L. Rector Memorial Scholarship Fund,Erie,CO,80526,Contributions,
275,House District 02,"Garnett, Alec",Democratic,131.52,8/26/19 0:00,Hornet Restaurant,Denver,CO,80203,"Food, Beverages and Meals",
276,House District 02,"Garnett, Alec",Democratic,566.54,8/31/19 0:00,,,,,Other,Non-Itemized Expenses
277,House District 02,"Garnett, Alec",Democratic,52.0,9/9/19 0:00,Potager,Denver,CO,80218,"Food, Beverages and Meals",
278,House District 02,"Garnett, Alec",Democratic,41.46,9/13/19 0:00,Racines,Denver,CO,80202,"Food, Beverages and Meals",
279,House District 02,"Garnett, Alec",Democratic,60.89,9/16/19 0:00,Woodys Pizza,Golden,CO,80401,"Food, Beverages and Meals",
280,House District 02,"Garnett, Alec",Democratic,250.0,9/29/19 0:00,Denver Democratic Central Committee,Denver,CO,80209,Other,Contribution
281,House District 02,"Garnett, Alec",Democratic,22.73,9/29/19 0:00,Act Blue,Cambridge,MA,2138,Bank Fees,
282,House District 02,"Garnett, Alec",Democratic,45.0,9/30/19 0:00,Colorado Lgbt Bar Association,Denver,CO,80204,Contributions,
283,House District 02,"Garnett, Alec",Democratic,50.04,9/30/19 0:00,Charlie Brown'S,Denver,CO,80203,"Food, Beverages and Meals",
284,House District 02,"Garnett, Alec",Democratic,118.06,9/30/19 0:00,Brown Palace,Denver,CO,80202,"Food, Beverages and Meals",
285,House District 02,"Garnett, Alec",Democratic,583.11,9/30/19 0:00,,,,,Other,Non-Itemized Expenses
286,House District 02,"Garnett, Alec",Democratic,150.0,9/30/19 0:00,Flume Foundation,Denver,CO,80209,Contributions,
287,House District 02,"Garnett, Alec",Democratic,820.0,12/3/18 0:00,Office Depot,Denver,CO,80202,Office Equipment & Supplies,
288,House District 02,"Garnett, Alec",Democratic,61.0,12/6/18 0:00,Dolly,Seattle,WA,98164,Other,Moving Expenses
289,House District 02,"Garnett, Alec",Democratic,91.76,12/10/18 0:00,Argonaut,Denver,CO,80203,"Food, Beverages and Meals",
290,House District 02,"Garnett, Alec",Democratic,157.13,12/14/18 0:00,Wash Park Grill,Denver,CO,80209,"Food, Beverages and Meals",
291,House District 02,"Garnett, Alec",Democratic,902.1,12/17/18 0:00,West Elm,Denver,CO,80206,Office Equipment & Supplies,
292,House District 02,"Garnett, Alec",Democratic,187.08,12/24/18 0:00,Bistro At Marshdale,Evergreen,CO,80439,"Food, Beverages and Meals",
293,House District 02,"Garnett, Alec",Democratic,131.2,12/24/18 0:00,Charlie Brown'S,Denver,CO,80203,"Food, Beverages and Meals",
294,House District 02,"Garnett, Alec",Democratic,77.99,12/24/18 0:00,D Bar,Denver,CO,80203,"Food, Beverages and Meals",
295,House District 02,"Garnett, Alec",Democratic,127.32,12/26/18 0:00,Uber,San Francisco,CA,94105,Travel & Lodging,
296,House District 02,"Garnett, Alec",Democratic,503.13,12/31/18 0:00,,,,,Office Equipment & Supplies,
297,House District 02,"Garnett, Alec",Democratic,68.99,1/2/20 0:00,Amazon,Seattle,WA,96109,Office Equipment & Supplies,
298,House District 02,"Garnett, Alec",Democratic,3350.0,1/6/20 0:00,Colorado Democratic Party,Denver,CO,80203,Other,Member Dues
299,House District 02,"Garnett, Alec",Democratic,563.0,1/6/20 0:00,House Dems Caucus Fund,Denver,CO,80203,Other,Member Dues
300,House District 02,"Garnett, Alec",Democratic,772.98,1/9/20 0:00,Carboy Winery,Denver,CO,80203,Fundraising Expenses,
301,House District 02,"Garnett, Alec",Democratic,65.26,1/14/20 0:00,Uber,San Francisco,CA,94105,"Food, Beverages and Meals",
302,House District 02,"Garnett, Alec",Democratic,181.8,1/17/20 0:00,United Airlines,Wacker,IL,60606,Travel & Lodging,
303,House District 02,"Garnett, Alec",Democratic,53.47,1/17/20 0:00,City Grill,Denver,CO,80203,"Food, Beverages and Meals",
304,House District 02,"Garnett, Alec",Democratic,78.77,1/21/20 0:00,Racines,Denver,CO,80202,"Food, Beverages and Meals",
305,House District 02,"Garnett, Alec",Democratic,46.92,1/21/20 0:00,Uber,San Francisco,CA,94105,"Food, Beverages and Meals",
306,House District 02,"Garnett, Alec",Democratic,75.0,1/27/20 0:00,Dons Tavern,Denver,CO,80203,"Food, Beverages and Meals",
307,House District 02,"Garnett, Alec",Democratic,49.92,1/27/20 0:00,Whole Foods,Denver,CO,80218,"Food, Beverages and Meals",
308,House District 02,"Garnett, Alec",Democratic,58.97,1/28/20 0:00,Uber,San Francisco,CA,94105,"Food, Beverages and Meals",
309,House District 02,"Garnett, Alec",Democratic,86.35,1/30/20 0:00,Carboy Winery,Denver,CO,80203,"Food, Beverages and Meals",
310,House District 02,"Garnett, Alec",Democratic,37.03,1/30/20 0:00,Carboy Winery,Denver,CO,80203,"Food, Beverages and Meals",
311,House District 02,"Garnett, Alec",Democratic,299.86,1/30/20 0:00,,,,,Miscellaneous,
312,House District 02,"Garnett, Alec",Democratic,103.7,1/31/20 0:00,Cherry Cricket,Denver,CO,80206,Travel & Lodging,
313,House District 02,"Garnett, Alec",Democratic,37.56,2/3/20 0:00,Jimmy Johns,Denver,CO,80202,"Food, Beverages and Meals",
314,House District 02,"Garnett, Alec",Democratic,350.0,2/10/20 0:00,Ngp,Somerville,MA,2144,Fundraising Expenses,
315,House District 02,"Garnett, Alec",Democratic,24.05,2/10/20 0:00,Mad Greens,Denver,CO,80202,"Food, Beverages and Meals",
316,House District 02,"Garnett, Alec",Democratic,107.13,2/11/20 0:00,Whole Foods,Denver,CO,80218,Fundraising Expenses,
317,House District 02,"Garnett, Alec",Democratic,42.99,2/11/20 0:00,Mad Greens,Denver,CO,80202,"Food, Beverages and Meals",
318,House District 02,"Garnett, Alec",Democratic,34.16,2/13/20 0:00,Mad Greens,Denver,CO,80202,"Food, Beverages and Meals",
319,House District 02,"Garnett, Alec",Democratic,42.99,2/14/20 0:00,Mad Greens,Denver,CO,80202,"Food, Beverages and Meals",
320,House District 02,"Garnett, Alec",Democratic,34.86,2/14/20 0:00,Lyft,Denver,CO,80204,"Food, Beverages and Meals",
321,House District 02,"Garnett, Alec",Democratic,43.05,2/18/20 0:00,Mad Greens,Denver,CO,80202,"Food, Beverages and Meals",
322,House District 02,"Garnett, Alec",Democratic,36.0,2/18/20 0:00,Sattelite,Denver,CO,80203,"Food, Beverages and Meals",
323,House District 02,"Garnett, Alec",Democratic,47.29,2/20/20 0:00,City Grill,Denver,CO,80203,"Food, Beverages and Meals",
324,House District 02,"Garnett, Alec",Democratic,41.26,2/21/20 0:00,Mad Greens,Denver,CO,80202,"Food, Beverages and Meals",
325,House District 02,"Garnett, Alec",Democratic,24.84,2/24/20 0:00,Mad Greens,Denver,CO,80202,"Food, Beverages and Meals",
326,House District 02,"Garnett, Alec",Democratic,24.84,2/26/20 0:00,Mad Greens,Denver,CO,80202,"Food, Beverages and Meals",
327,House District 02,"Garnett, Alec",Democratic,60.0,2/27/20 0:00,Ngp,Somerville,MA,2144,Fundraising Expenses,
328,House District 02,"Garnett, Alec",Democratic,56.45,2/27/20 0:00,Cherry Cricket,Denver,CO,80206,Fundraising Expenses,
329,House District 02,"Garnett, Alec",Democratic,150.21,2/28/20 0:00,Soundcloud,New York,NY,10004,Consultant & Professional Services,
330,House District 02,"Garnett, Alec",Democratic,212.87,2/28/20 0:00,,,,,Miscellaneous,
331,House District 02,"Garnett, Alec",Democratic,95.0,2/29/20 0:00,Kathy  Hahn,Denver,CO,80203,"Food, Beverages and Meals",
332,House District 02,"Garnett, Alec",Democratic,380.0,3/2/20 0:00,Ngp,Somerville,MA,2144,Fundraising Expenses,
333,House District 02,"Garnett, Alec",Democratic,76.13,3/2/20 0:00,Pablos Coffee,Denver,CO,80203,"Food, Beverages and Meals",
334,House District 02,"Garnett, Alec",Democratic,49.35,3/2/20 0:00,City Grill,Denver,CO,80203,"Food, Beverages and Meals",
335,House District 02,"Garnett, Alec",Democratic,84.24,3/5/20 0:00,Uber,San Francisco,CA,94105,"Food, Beverages and Meals",
336,House District 02,"Garnett, Alec",Democratic,43.99,3/6/20 0:00,Mad Greens,Denver,CO,80202,"Food, Beverages and Meals",
337,House District 02,"Garnett, Alec",Democratic,600.58,3/9/20 0:00,Capital Grille,Denver,CO,80202,Fundraising Expenses,
338,House District 02,"Garnett, Alec",Democratic,71.28,3/9/20 0:00,Fire Restaurant,Denver,CO,80203,"Food, Beverages and Meals",
339,House District 02,"Garnett, Alec",Democratic,245.95,3/30/20 0:00,,,,,Miscellaneous,
340,House District 02,"Garnett, Alec",Democratic,380.0,4/2/20 0:00,Ngp,Somerville,MA,2144,"Food, Beverages and Meals",
341,House District 02,"Garnett, Alec",Democratic,174.32,4/6/20 0:00,Uber,San Francisco,CA,94105,"Food, Beverages and Meals",
342,House District 02,"Garnett, Alec",Democratic,1799.0,4/6/20 0:00,Control Point Group,Washington,DC,20003,Advertising,
343,House District 02,"Garnett, Alec",Democratic,51.91,4/14/20 0:00,Phunkshun Wear,Denver,CO,80216,Office Equipment & Supplies,
344,House District 02,"Garnett, Alec",Democratic,147.96,4/25/20 0:00,Act Blue,Cambridge,MA,2138,Bank Fees,
345,House District 02,"Garnett, Alec",Democratic,48.22,4/30/20 0:00,,,,,Miscellaneous,
346,House District 02,"Garnett, Alec",Democratic,2.0,4/30/20 0:00,First Bank,Lakewood,CO,80215,Bank Fees,
347,House District 02,"Garnett, Alec",Democratic,380.0,5/4/20 0:00,Ngp,Somerville,MA,2144,Fundraising Expenses,
348,House District 02,"Garnett, Alec",Democratic,1550.0,5/13/20 0:00,Katie  March,Denver,CO,80203,Consultant & Professional Services,
349,House District 02,"Garnett, Alec",Democratic,93.73,5/22/20 0:00,Uber,San Francisco,CA,94105,"Food, Beverages and Meals",
350,House District 02,"Garnett, Alec",Democratic,380.0,6/2/20 0:00,Ngp,Somerville,MA,2144,"Food, Beverages and Meals",
351,House District 02,"Garnett, Alec",Democratic,215.04,6/3/20 0:00,Jimmy Johns,Denver,CO,80202,"Food, Beverages and Meals",
352,House District 02,"Garnett, Alec",Democratic,65.2,6/10/20 0:00,,,,,Miscellaneous,
353,House District 02,"Garnett, Alec",Democratic,14.75,6/15/20 0:00,Jimmy Johns,Denver,CO,80202,"Food, Beverages and Meals",
354,House District 02,"Garnett, Alec",Democratic,1462.21,6/15/20 0:00,Apple,Denver,CO,80206,Office Equipment & Supplies,
355,House District 02,"Garnett, Alec",Democratic,33.26,6/22/20 0:00,Uber,San Francisco,CA,94105,"Food, Beverages and Meals",
356,House District 02,"Garnett, Alec",Democratic,380.0,7/2/20 0:00,Ngp,Somerville,MA,2144,Fundraising Expenses,
357,House District 02,"Garnett, Alec",Democratic,48.03,7/7/20 0:00,Uber,San Francisco,CA,94105,Travel & Lodging,
358,House District 02,"Garnett, Alec",Democratic,68.19,7/9/20 0:00,Uber,San Francisco,CA,94105,Travel & Lodging,
359,House District 02,"Garnett, Alec",Democratic,54.0,7/13/20 0:00,Denver Zoo,Denver,CO,80205,Fundraising Expenses,
360,House District 02,"Garnett, Alec",Democratic,58.05,7/13/20 0:00,Uber,San Francisco,CA,94105,Fundraising Expenses,
361,House District 02,"Garnett, Alec",Democratic,375.0,7/15/20 0:00,Colorado Freedom Fund,Denver,CO,80205,Contributions,
362,House District 02,"Garnett, Alec",Democratic,400.0,7/15/20 0:00,Fisher Early Learning Center,Denver,CO,80210,Other,Child Care
363,House District 02,"Garnett, Alec",Democratic,86.49,7/15/20 0:00,Uber,San Francisco,CA,94105,Travel & Lodging,
364,House District 02,"Garnett, Alec",Democratic,75.1,7/15/20 0:00,Uber,San Francisco,CA,94105,Travel & Lodging,
365,House District 02,"Garnett, Alec",Democratic,73.7,7/20/20 0:00,Uber,San Francisco,CA,94105,Office Equipment & Supplies,
366,House District 02,"Garnett, Alec",Democratic,90.08,7/20/20 0:00,Snooze,Denver,CO,80205,"Food, Beverages and Meals",
367,House District 02,"Garnett, Alec",Democratic,50.96,7/20/20 0:00,Uber,San Francisco,CA,94105,Travel & Lodging,
368,House District 02,"Garnett, Alec",Democratic,60.11,7/20/20 0:00,Uber,San Francisco,CA,94105,Travel & Lodging,
369,House District 02,"Garnett, Alec",Democratic,93.73,7/25/20 0:00,,,,,Miscellaneous,
370,House District 02,"Garnett, Alec",Democratic,168.52,7/28/20 0:00,,,,,"Food, Beverages and Meals",
371,House District 02,"Garnett, Alec",Democratic,68.0,7/30/20 0:00,Uber Eats,Trevose,PA,94103,"Food, Beverages and Meals",
372,House District 02,"Garnett, Alec",Democratic,800.0,8/1/20 0:00,Fisher Early Learning Center,Denver,CO,80210,Other,Child Care
373,House District 02,"Garnett, Alec",Democratic,210.01,8/3/20 0:00,Amazon,Seattle,WA,96109,Office Equipment & Supplies,
374,House District 02,"Garnett, Alec",Democratic,85.88,8/3/20 0:00,Uber Eats,Trevose,PA,94103,"Food, Beverages and Meals",
375,House District 02,"Garnett, Alec",Democratic,380.0,8/3/20 0:00,Ngp,Somerville,MA,2144,Advertising,
376,House District 02,"Garnett, Alec",Democratic,58.6,8/4/20 0:00,Uber Eats,Trevose,PA,94103,"Food, Beverages and Meals",
377,House District 02,"Garnett, Alec",Democratic,43.71,8/5/20 0:00,Uber Eats,Trevose,PA,94103,"Food, Beverages and Meals",
378,House District 02,"Garnett, Alec",Democratic,77.05,8/6/20 0:00,Uber Eats,Trevose,PA,94103,"Food, Beverages and Meals",
379,House District 02,"Garnett, Alec",Democratic,500.0,8/10/20 0:00,House Dems Petty Cash Fund,Lafayette,CO,80026,Other,Caucus Dues
380,House District 02,"Garnett, Alec",Democratic,71.03,8/10/20 0:00,Uber Eats,Trevose,PA,94103,"Food, Beverages and Meals",
381,House District 02,"Garnett, Alec",Democratic,287.98,8/10/20 0:00,,,,,"Food, Beverages and Meals",
382,House District 02,"Garnett, Alec",Democratic,129.34,8/19/20 0:00,Tavernetta,Denver,CO,80202,"Food, Beverages and Meals",
383,House District 02,"Garnett, Alec",Democratic,252.65,8/20/20 0:00,Washington Park Grille,Denver,CO,80209,"Food, Beverages and Meals",
384,House District 02,"Garnett, Alec",Democratic,45.83,8/24/20 0:00,Uber Eats,Trevose,PA,94103,"Food, Beverages and Meals",
385,House District 02,"Garnett, Alec",Democratic,800.0,9/1/20 0:00,Fisher Early Learning Center,Denver,CO,80210,Other,Child Care
386,House District 02,"Garnett, Alec",Democratic,42.47,9/1/20 0:00,Act Blue,Cambridge,MA,2138,Bank Fees,
387,House District 02,"Garnett, Alec",Democratic,380.0,9/2/20 0:00,Ngp,Somerville,MA,2144,Advertising,
388,House District 02,"Garnett, Alec",Democratic,10.33,9/3/20 0:00,,,,,"Food, Beverages and Meals",
389,House District 02,"Garnett, Alec",Democratic,36.19,9/8/20 0:00,Ivy,Denver,CO,80203,"Food, Beverages and Meals",
390,House District 02,"Garnett, Alec",Democratic,65.13,9/8/20 0:00,Uber Eats,Trevose,PA,94103,"Food, Beverages and Meals",
391,House District 02,"Garnett, Alec",Democratic,162.36,9/10/20 0:00,Zoom,San Jose,CA,95113,Office Equipment & Supplies,
392,House District 02,"Garnett, Alec",Democratic,143.36,9/14/20 0:00,Cart Driver Rino,Denver,CO,80205,"Food, Beverages and Meals",
393,House District 02,"Garnett, Alec",Democratic,16.79,9/15/20 0:00,Act Blue,Cambridge,MA,2138,Bank Fees,
394,House District 02,"Garnett, Alec",Democratic,800.0,9/16/20 0:00,Fisher Early Learning Center,Denver,CO,80210,Other,Child Care
395,House District 02,"Garnett, Alec",Democratic,50.14,9/18/20 0:00,Lyft,Denver,CO,80204,Travel & Lodging,
396,House District 02,"Garnett, Alec",Democratic,210.5,9/21/20 0:00,Hop Alley Denver,Denver,CO,80205,Fundraising Expenses,
397,House District 02,"Garnett, Alec",Democratic,500.0,9/21/20 0:00,Kathleen  Melendy,Denver,CO,80203,Employee Services,
398,House District 02,"Garnett, Alec",Democratic,400.0,9/22/20 0:00,Colorado Democratic Party,Denver,CO,80203,Contributions,
399,House District 02,"Garnett, Alec",Democratic,809.08,9/25/20 0:00,Office Depot,Denver,CO,80202,Office Equipment & Supplies,
400,House District 02,"Garnett, Alec",Democratic,150.59,9/25/20 0:00,Angelos,Denver,CO,80203,"Food, Beverages and Meals",
401,House District 02,"Garnett, Alec",Democratic,42.59,9/28/20 0:00,Ivy,Denver,CO,80203,"Food, Beverages and Meals",
402,House District 02,"Garnett, Alec",Democratic,300.0,9/28/20 0:00,Gofundme,Redwood City,CA,94553,Contributions,Jai Rajagopal Memorial Fund
403,House District 02,"Garnett, Alec",Democratic,150.11,9/29/20 0:00,Act Blue,Cambridge,MA,2138,Bank Fees,
404,House District 02,"Garnett, Alec",Democratic,440.42,9/30/20 0:00,Panera Bread,Denver,CO,80202,Fundraising Expenses,
405,House District 02,"Garnett, Alec",Democratic,234.0,9/30/20 0:00,The Economist,New York,NY,10017,Office Equipment & Supplies,
406,House District 02,"Garnett, Alec",Democratic,2.0,9/30/20 0:00,First Bank,Lakewood,CO,80215,Bank Fees,
407,House District 02,"Garnett, Alec",Democratic,38.49,10/1/19 0:00,Rosenbergs,Denver,CO,80205,"Food, Beverages and Meals",
408,House District 02,"Garnett, Alec",Democratic,44.64,10/1/20 0:00,Humboldt Farm,Denver,CO,80218,"Food, Beverages and Meals",
409,House District 02,"Garnett, Alec",Democratic,104.68,10/1/20 0:00,Uber Eats,Trevose,PA,94103,"Food, Beverages and Meals",
410,House District 02,"Garnett, Alec",Democratic,186.39,10/2/20 0:00,Del Friscos Grille,Cherry Creek,CO,80206,"Food, Beverages and Meals",
411,House District 02,"Garnett, Alec",Democratic,380.0,10/2/20 0:00,Ngp,Somerville,MA,2144,Office Equipment & Supplies,
412,House District 02,"Garnett, Alec",Democratic,60.0,10/3/19 0:00,Schnepfs,Golden,CO,80401,"Food, Beverages and Meals",
413,House District 02,"Garnett, Alec",Democratic,112.32,10/4/19 0:00,Pablos Coffee,Denver,CO,80203,Fundraising Expenses,
414,House District 02,"Garnett, Alec",Democratic,800.0,10/5/20 0:00,Fisher Early Learning Center,Denver,CO,80210,Other,"Child Care, Paid Through Reimbursement"
415,House District 02,"Garnett, Alec",Democratic,47.93,10/5/20 0:00,Chipotle,Denver,CO,80203,"Food, Beverages and Meals",
416,House District 02,"Garnett, Alec",Democratic,95.07,10/5/20 0:00,Uno Mas Taqueria,Denver,CO,80203,"Food, Beverages and Meals",
417,House District 02,"Garnett, Alec",Democratic,60.0,10/7/19 0:00,Flume Foundation,Denver,CO,80209,Contributions,Contribution To Memorial Golf Tournament
418,House District 02,"Garnett, Alec",Democratic,30.73,10/7/19 0:00,Lucky'S,Denver,CO,80301,"Food, Beverages and Meals",
419,House District 02,"Garnett, Alec",Democratic,42.05,10/9/20 0:00,Ivy,Denver,CO,80203,"Food, Beverages and Meals",
420,House District 02,"Garnett, Alec",Democratic,7.28,10/13/20 0:00,Lyft,Denver,CO,80204,Travel & Lodging,
421,House District 02,"Garnett, Alec",Democratic,95.38,10/13/20 0:00,,,,,Fundraising Expenses,
422,House District 02,"Garnett, Alec",Democratic,222.46,10/13/20 0:00,Uber Eats,Trevose,PA,94103,"Food, Beverages and Meals",
423,House District 02,"Garnett, Alec",Democratic,41.49,10/15/20 0:00,Act Blue,Cambridge,MA,2138,Bank Fees,
424,House District 02,"Garnett, Alec",Democratic,1740.49,10/19/20 0:00,Apple,Denver,CO,80206,Office Equipment & Supplies,
425,House District 02,"Garnett, Alec",Democratic,67.94,10/21/20 0:00,Safeway,Denver,CO,80218,"Food, Beverages and Meals",
426,House District 02,"Garnett, Alec",Democratic,750.0,10/21/20 0:00,Kathleen  Melendy,Denver,CO,80203,Employee Services,
427,House District 02,"Garnett, Alec",Democratic,146.01,10/22/20 0:00,Chook,Denver,CO,80210,"Food, Beverages and Meals",
428,House District 02,"Garnett, Alec",Democratic,34.08,10/25/19 0:00,City O City,Denver,CO,80203,"Food, Beverages and Meals",
429,House District 02,"Garnett, Alec",Democratic,64.15,10/28/19 0:00,Park And Co,Denver,CO,80203,"Food, Beverages and Meals",
430,House District 02,"Garnett, Alec",Democratic,7.9,10/28/20 0:00,Act Blue,Cambridge,MA,2138,Bank Fees,
431,House District 02,"Garnett, Alec",Democratic,61.01,10/29/20 0:00,Uber Eats,Trevose,PA,94103,"Food, Beverages and Meals",
432,House District 02,"Garnett, Alec",Democratic,750.0,10/29/20 0:00,Katie A March,Denver,CO,80203,Employee Services,
433,House District 02,"Garnett, Alec",Democratic,2.0,10/29/20 0:00,First Bank,Lakewood,CO,80215,Bank Fees,
434,House District 02,"Garnett, Alec",Democratic,549.97,10/31/19 0:00,,,,,Miscellaneous,
435,House District 02,"Garnett, Alec",Democratic,380.0,11/2/20 0:00,Ngp,Somerville,MA,2144,Office Equipment & Supplies,
436,House District 02,"Garnett, Alec",Democratic,53.51,11/3/20 0:00,Uber Eats,Trevose,PA,94103,"Food, Beverages and Meals",
437,House District 02,"Garnett, Alec",Democratic,120.16,11/4/19 0:00,Santiagos Mexican Restaurant,Denver,CO,80204,"Food, Beverages and Meals",
438,House District 02,"Garnett, Alec",Democratic,111.8,11/4/20 0:00,Uber Eats,Trevose,PA,94103,"Food, Beverages and Meals",
439,House District 02,"Garnett, Alec",Democratic,202.95,11/4/20 0:00,North Italia,Denver,CO,80206,"Food, Beverages and Meals",
440,House District 02,"Garnett, Alec",Democratic,122.72,11/5/20 0:00,Uber Eats,Trevose,PA,94103,"Food, Beverages and Meals",
441,House District 02,"Garnett, Alec",Democratic,49.5,11/9/20 0:00,Whole Foods,Denver,CO,80218,"Food, Beverages and Meals",
442,House District 02,"Garnett, Alec",Democratic,174.5,11/9/20 0:00,Stat,Boston,MA,2125,Office Equipment & Supplies,States Financial Publication
443,House District 02,"Garnett, Alec",Democratic,61.87,11/12/19 0:00,The Park Tavern,Denver,CO,80218,"Food, Beverages and Meals",
444,House District 02,"Garnett, Alec",Democratic,113.94,11/14/19 0:00,Amazon,Seattle,WA,96109,Office Equipment & Supplies,
445,House District 02,"Garnett, Alec",Democratic,62.45,11/16/20 0:00,Park And Co,Denver,CO,80203,"Food, Beverages and Meals",
446,House District 02,"Garnett, Alec",Democratic,26.55,11/21/19 0:00,Circle K,Denver,CO,80203,Travel & Lodging,
447,House District 02,"Garnett, Alec",Democratic,55.11,11/23/20 0:00,Amazon,Seattle,WA,96109,Office Equipment & Supplies,
448,House District 02,"Garnett, Alec",Democratic,34.76,11/24/19 0:00,Jimmy Johns,Denver,CO,80202,"Food, Beverages and Meals",
449,House District 02,"Garnett, Alec",Democratic,180.0,11/25/19 0:00,Jewish Colorado,Denver,CO,80246,Contributions,
450,House District 02,"Garnett, Alec",Democratic,61.84,11/25/19 0:00,Mezcal,Denver,CO,80206,"Food, Beverages and Meals",
451,House District 02,"Garnett, Alec",Democratic,30.87,11/25/19 0:00,City O City,Denver,CO,80203,"Food, Beverages and Meals",
452,House District 02,"Garnett, Alec",Democratic,58.7,11/25/20 0:00,Anise,Denver,CO,80203,"Food, Beverages and Meals",
453,House District 02,"Garnett, Alec",Democratic,124.84,11/27/20 0:00,Uber Eats,Trevose,PA,94103,"Food, Beverages and Meals",
454,House District 02,"Garnett, Alec",Democratic,79.59,11/27/20 0:00,Safeway,Denver,CO,80218,"Food, Beverages and Meals",
455,House District 02,"Garnett, Alec",Democratic,56.61,11/27/20 0:00,Tommy Thai,Denver,CO,80206,"Food, Beverages and Meals",
456,House District 02,"Garnett, Alec",Democratic,11.88,11/28/20 0:00,Act Blue,Cambridge,MA,2138,Bank Fees,
457,House District 02,"Garnett, Alec",Democratic,429.8,11/30/19 0:00,,,,,Miscellaneous,
458,House District 02,"Garnett, Alec",Democratic,257.86,11/30/20 0:00,,,,,"Food, Beverages and Meals",
459,House District 02,"Garnett, Alec",Democratic,101.48,11/30/20 0:00,Molly'S Spirits,Denver,CO,80212,"Food, Beverages and Meals",
460,House District 02,"Garnett, Alec",Democratic,267.17,12/2/19 0:00,Target,Glendale,CO,80426,Office Equipment & Supplies,
461,House District 02,"Garnett, Alec",Democratic,65.59,12/4/19 0:00,Uber,San Francisco,CA,94105,Travel & Lodging,
462,House District 02,"Garnett, Alec",Democratic,43.31,12/5/19 0:00,Sprint,Lakewood,CO,80214,Office Equipment & Supplies,
463,House District 02,"Garnett, Alec",Democratic,32.52,12/5/19 0:00,Sprint,Lakewood,CO,80214,Office Equipment & Supplies,
464,House District 02,"Garnett, Alec",Democratic,413.3,12/6/19 0:00,Carboy Winery,Denver,CO,80203,Fundraising Expenses,
465,House District 02,"Garnett, Alec",Democratic,100.0,12/6/19 0:00,Gofundme,Redwood City,CA,94553,Contributions,
466,House District 02,"Garnett, Alec",Democratic,86.59,12/6/19 0:00,Apple,Denver,CO,80206,Office Equipment & Supplies,
467,House District 02,"Garnett, Alec",Democratic,73.62,12/6/19 0:00,Carboy Winery,Denver,CO,80203,Fundraising Expenses,
468,House District 02,"Garnett, Alec",Democratic,47.42,12/6/19 0:00,Sassafras,Denver,CO,80203,"Food, Beverages and Meals",
469,House District 02,"Garnett, Alec",Democratic,207.27,12/9/19 0:00,Paper Culture,Millbrae,CA,94030,Office Equipment & Supplies,
470,House District 02,"Garnett, Alec",Democratic,58.87,12/11/19 0:00,Uber,San Francisco,CA,94105,Travel & Lodging,
471,House District 02,"Garnett, Alec",Democratic,877.96,12/12/19 0:00,Southwest,Dallas,TX,75235,Travel & Lodging,
472,House District 02,"Garnett, Alec",Democratic,66.06,12/13/19 0:00,Lyft,Denver,CO,80204,Travel & Lodging,
473,House District 02,"Garnett, Alec",Democratic,38.97,12/13/19 0:00,Lyft,Denver,CO,80204,Travel & Lodging,
474,House District 02,"Garnett, Alec",Democratic,1000.0,12/15/19 0:00,Katie  March,Denver,CO,80203,Consultant & Professional Services,
475,House District 02,"Garnett, Alec",Democratic,228.75,12/16/19 0:00,Mandarin,Washington,DC,20024,Travel & Lodging,
476,House District 02,"Garnett, Alec",Democratic,61.41,12/16/19 0:00,Lyft,Denver,CO,80204,Travel & Lodging,
477,House District 02,"Garnett, Alec",Democratic,52.4,12/16/19 0:00,Lyft,Denver,CO,80204,Travel & Lodging,
478,House District 02,"Garnett, Alec",Democratic,43.4,12/16/19 0:00,Bracket Room,Arlington,VA,22201,"Food, Beverages and Meals",
479,House District 02,"Garnett, Alec",Democratic,156.6,12/17/19 0:00,Stoney'S Bar And Grill,Denver,CO,80218,"Food, Beverages and Meals",
480,House District 02,"Garnett, Alec",Democratic,2056.81,12/19/19 0:00,Apple,Denver,CO,80206,Office Equipment & Supplies,
481,House District 02,"Garnett, Alec",Democratic,1113.43,12/19/19 0:00,Apple,Denver,CO,80206,Office Equipment & Supplies,
482,House District 02,"Garnett, Alec",Democratic,129.95,12/20/19 0:00,Ace Hardware,Denver,CO,80218,Office Equipment & Supplies,
483,House District 02,"Garnett, Alec",Democratic,79.17,12/23/19 0:00,The Avenue Grill,Denver,CO,80203,"Food, Beverages and Meals",
484,House District 02,"Garnett, Alec",Democratic,38.61,12/24/19 0:00,Uber,San Francisco,CA,94105,Travel & Lodging,
485,House District 02,"Garnett, Alec",Democratic,62.52,12/30/19 0:00,City Grill,Denver,CO,80203,"Food, Beverages and Meals",
486,House District 02,"Garnett, Alec",Democratic,43.48,12/30/19 0:00,City Grill,Denver,CO,80203,"Food, Beverages and Meals",
487,House District 02,"Garnett, Alec",Democratic,822.69,12/30/19 0:00,Act Blue,Cambridge,MA,2138,Fundraising Expenses,
488,House District 02,"Garnett, Alec",Democratic,490.45,12/31/19 0:00,,,,,Miscellaneous,
489,House District 02,"Garnett, Alec",Democratic,3350.0,12/31/19 0:00,Colorado Democratic Party,Denver,CO,80203,Other,Member Dues
490,House District 02,"Partridge, Victoria",Republican,107.0,6/25/20 0:00,Us Postal Service,Denver,CO,80206,Rent & Utilities,Po Box Rental And Stamps
491,House District 02,"Partridge, Victoria",Republican,20.47,7/9/20 0:00,Eventbrite,San Francisco,CA,94103,Fundraising Expenses,Candidate Event Denver Republican Party
492,House District 02,"Partridge, Victoria",Republican,75.0,7/11/20 0:00,Saratoga Strategies,Denver,CO,80204,Advertising,Website
493,House District 02,"Partridge, Victoria",Republican,105.0,7/15/20 0:00,Spradlin Printing,Parker,CO,80134,Office Equipment & Supplies,Business Cards For Campaign
494,House District 02,"Partridge, Victoria",Republican,25.0,7/15/20 0:00,The Lincoln Club Of Colorado,Denver,CO,80201,Contributions,Membership - Candidate
495,House District 02,"Partridge, Victoria",Republican,46.22,7/17/20 0:00,Office Depot,Denver,CO,80209,Office Equipment & Supplies,Labels And Office Supplies
496,House District 02,"Partridge, Victoria",Republican,49.0,7/19/20 0:00,Campaign Partner Data Ecology Llc,Still River,MA,1467,Bank Fees,Credit Card Processing Fees Service
497,House District 02,"Partridge, Victoria",Republican,2.68,7/23/20 0:00,Office Depot,Denver,CO,80209,Office Equipment & Supplies,Envelopes
498,House District 02,"Partridge, Victoria",Republican,49.0,8/18/20 0:00,Data Ecology Llc,Still River,MA,11467,Miscellaneous,Campaign Partner Computer Processing
499,House District 02,"Partridge, Victoria",Republican,327.67,8/21/20 0:00,"Scudder Press, Inc",Thornton,CO,80229,Advertising,Campaign Flyers
500,House District 02,"Partridge, Victoria",Republican,49.0,9/18/20 0:00,Data Ecology Llc,Still River,MA,11467,Consultant & Professional Services,Website Billing And Processing
501,House District 02,"Partridge, Victoria",Republican,2575.79,10/14/20 0:00,"Scudder Press, Inc",Thornton,CO,80229,Advertising,Campaign Flyer Mailers
502,House District 02,"Partridge, Victoria",Republican,49.0,10/18/20 0:00,Data Ecology Llc,Still River,MA,11467,Miscellaneous,Website Payment Processing - Campaign Partner
503,House District 03,"Klocek, William",Republican,60.0,5/1/20 0:00,Us Mint,Washington,DC,20220,Office Equipment & Supplies,Stationary
504,House District 03,"Klocek, William",Republican,16.54,5/1/20 0:00,1St Bank,Shoreview,MN,55126,Office Equipment & Supplies,Checks
505,House District 03,"Titterington, Dean",Republican,7.9,9/3/20 0:00,Winred,Arlington,VA,22219,Bank Fees,Austin Donation
506,House District 03,"Titterington, Dean",Republican,100.0,9/4/20 0:00,Excel Press,Englewood,CO,80110,Advertising,Palm Cards
507,House District 03,"Titterington, Dean",Republican,300.0,9/4/20 0:00,Cutter Consulting Llc,Colorado Springs,CO,80905,Advertising,
508,House District 03,"Titterington, Dean",Republican,500.0,9/20/20 0:00,Acme Political Solutions,Centennial,CO,80111,Advertising,Yard Signs And Door Hangers
509,House District 03,"Titterington, Dean",Republican,0.68,9/29/20 0:00,Winred,Arlington,VA,22219,Bank Fees,Austin Donation
510,House District 03,"Titterington, Dean",Republican,325.0,10/26/20 0:00,Acme Political Solutions,Centennial,CO,80111,Advertising,
511,House District 03,"Titterington, Dean",Republican,4.1,10/30/20 0:00,Winred,Arlington,VA,22219,Bank Fees,Stewart Donation
512,House District 03,"Froelich, Meg",Democratic,225.0,1/25/19 0:00,Usps Business,Greenwood Village,CO,80112,Other,Business Reply Mail Permit
513,House District 03,"Froelich, Meg",Democratic,507.0,1/25/19 0:00,Ridder Braden Inc,Denver,CO,80203,Consultant & Professional Services,Website
514,House District 03,"Froelich, Meg",Democratic,100.0,1/27/19 0:00,Usps,Englewood,CO,80110,Consultant & Professional Services,Postage For Business Reply Mail
515,House District 03,"Froelich, Meg",Democratic,100.0,1/29/19 0:00,Usps,Englewood,CO,80110,Other,Postage
516,House District 03,"Froelich, Meg",Democratic,3361.1,1/30/19 0:00,Tru Blue Politics,Baltimore,MD,21201,Consultant & Professional Services,Printed Material.
517,House District 03,"Froelich, Meg",Democratic,10559.6,2/14/19 0:00,Tru Blue Politics,Baltimore,MD,21201,Consultant & Professional Services,"Printed Material, Consultation, Mail"
518,House District 03,"Froelich, Meg",Democratic,112.5,3/20/19 0:00,Ridder Braden Inc,Denver,CO,80203,Consultant & Professional Services,Website
519,House District 03,"Froelich, Meg",Democratic,1500.0,3/24/19 0:00,Robinson  Phillips,Aurora,CO,80115,Consultant & Professional Services,
520,House District 03,"Froelich, Meg",Democratic,202.68,3/31/19 0:00,Actblue,Somerville,MA,2411,Bank Fees,Online Contribution Fees Automatically Deducted.
521,House District 03,"Froelich, Meg",Democratic,30.07,3/31/19 0:00,Us Bank,Littleton,CO,80122,Bank Fees,
522,House District 03,"Froelich, Meg",Democratic,100.0,4/1/19 0:00,Usps,Englewood,CO,80110,Other,Business Reply Mail
523,House District 03,"Froelich, Meg",Democratic,277.5,4/4/19 0:00,Ezekial  Clark,Denver,CO,80218,Employee Services,
524,House District 03,"Froelich, Meg",Democratic,30.0,4/6/19 0:00,Amy  Schneider,Denver,CO,80205,Consultant & Professional Services,
525,House District 03,"Froelich, Meg",Democratic,259.94,4/15/19 0:00,Egan Printing,Denver,CO,80204,Consultant & Professional Services,Printing
526,House District 03,"Froelich, Meg",Democratic,331.11,4/19/19 0:00,C&D Printing,Denver,CO,80212,Consultant & Professional Services,
527,House District 03,"Froelich, Meg",Democratic,210.0,4/19/19 0:00,Let'S Talk About Change,Denver,CO,80237,Consultant & Professional Services,
528,House District 03,"Froelich, Meg",Democratic,39.6,6/30/19 0:00,Act Blue,Somerville,MA,02144-0031,Bank Fees,
529,House District 03,"Froelich, Meg",Democratic,15.0,6/30/19 0:00,Us Bank,Littleton,CO,80122,Bank Fees,
530,House District 03,"Froelich, Meg",Democratic,160.0,1/30/20 0:00,Beverly E Breakstone,Frisco,CO,80443,Consultant & Professional Services,Consulting
531,House District 03,"Froelich, Meg",Democratic,240.0,2/11/20 0:00,Usps Business,Greenwood Village,CO,80112,Fundraising Expenses,Business Reply Mail Postage
532,House District 03,"Froelich, Meg",Democratic,20.8,3/11/20 0:00,Office Depot,Denver,CO,80203,Other,Copies
533,House District 03,"Froelich, Meg",Democratic,71.32,4/2/19 0:00,Leher'S Flowers,Denver,CO,80223,Miscellaneous,Flowers For Event
534,House District 03,"Froelich, Meg",Democratic,10.0,4/7/20 0:00,Cj  Cullinan,Englewood,CO,80113,Contributions,Refund For Over-Payment
535,House District 03,"Froelich, Meg",Democratic,294.0,4/7/20 0:00,Littleton Public Schools,Littleton,CO,80113,Other,Auditorium Rental
536,House District 03,"Froelich, Meg",Democratic,259.94,4/12/19 0:00,Egan Printing,,CO,,Fundraising Expenses,Remittance Envelopes
537,House District 03,"Froelich, Meg",Democratic,336.7,4/17/19 0:00,C&D Printing,Denver,CO,80212,Office Equipment & Supplies,Printing Note Cards
538,House District 03,"Froelich, Meg",Democratic,20.0,4/29/20 0:00,Us Bank,Littleton,CO,80122,Bank Fees,
539,House District 03,"Froelich, Meg",Democratic,153.3,4/29/20 0:00,Act Blue,Somerville,MA,02144-0031,Fundraising Expenses,
540,House District 03,"Froelich, Meg",Democratic,105.0,5/1/19 0:00,"Let'S Talk About Change, Llc",Denver,CO,80237,Consultant & Professional Services,Training: Mental  Health First Aid
541,House District 03,"Froelich, Meg",Democratic,312.0,5/12/20 0:00,Liitleton Public Schools,Littleton,CO,80113,Other,Town Hall
542,House District 03,"Froelich, Meg",Democratic,313.22,5/22/20 0:00,C&D Printing,Denver,CO,80212,Fundraising Expenses,
543,House District 03,"Froelich, Meg",Democratic,66.29,5/28/20 0:00,Act Blue,Somerville,MA,02144-0031,Fundraising Expenses,
544,House District 03,"Froelich, Meg",Democratic,66.29,6/1/20 0:00,Actblue,Somerville,MA,2411,Fundraising Expenses,
545,House District 03,"Froelich, Meg",Democratic,238.28,6/10/20 0:00,Egan Printing,Denver,CO,80204,Fundraising Expenses,
546,House District 03,"Froelich, Meg",Democratic,24.51,6/10/20 0:00,Act Blue,Somerville,MA,02144-0031,Fundraising Expenses,
547,House District 03,"Froelich, Meg",Democratic,3500.0,6/15/20 0:00,Nicoll  Mischel,Denver,CO,80203,Consultant & Professional Services,Payroll
548,House District 03,"Froelich, Meg",Democratic,133.9,6/22/20 0:00,Office Max,Englewood,CO,80110,Office Equipment & Supplies,Office Supplies
549,House District 03,"Froelich, Meg",Democratic,21.55,6/22/20 0:00,Noodles & Co,Englewood,CO,80110,"Food, Beverages and Meals",Team Lunch
550,House District 03,"Froelich, Meg",Democratic,149.99,6/24/20 0:00,Act Blue,Somerville,MA,02144-0031,Bank Fees,
551,House District 03,"Froelich, Meg",Democratic,165.0,6/24/20 0:00,Usps,Englewood,CO,80110,Fundraising Expenses,
552,House District 03,"Froelich, Meg",Democratic,-39.6,6/30/19 0:00,Act Blue,Somerville,MA,02144-0031,Bank Fees,Offset Due To Update Of Filed Item
553,House District 03,"Froelich, Meg",Democratic,39.6,6/30/19 0:00,Act Blue,Somerville,MA,02144-0031,Bank Fees,
554,House District 03,"Froelich, Meg",Democratic,4.6,7/3/20 0:00,Usps,Englewood,CO,80113,Office Equipment & Supplies,Stamps
555,House District 03,"Froelich, Meg",Democratic,347.89,7/8/20 0:00,C&D Printing,Denver,CO,80212,Fundraising Expenses,Mailers For Newly Registered Voters
556,House District 03,"Froelich, Meg",Democratic,2805.71,7/15/20 0:00,Nicoll  Mischel,Denver,CO,80203,Employee Services,Payroll
557,House District 03,"Froelich, Meg",Democratic,3.4,7/20/20 0:00,Usps,Englewood,CO,80113,Miscellaneous,
558,House District 03,"Froelich, Meg",Democratic,100.0,7/21/20 0:00,Usps,Englewood,CO,80110,Fundraising Expenses,Return Mail
559,House District 03,"Froelich, Meg",Democratic,119.88,7/21/20 0:00,Dropbox,San Francisco,CA,94107,Office Equipment & Supplies,Dropbox
560,House District 03,"Froelich, Meg",Democratic,47.93,7/27/20 0:00,Office Depot,Denver,CO,80203,Office Equipment & Supplies,Labels
561,House District 03,"Froelich, Meg",Democratic,161.53,7/29/20 0:00,Zoom Video Conferencing,San Jose,CA,95113,Office Equipment & Supplies,Zoom Premium For Virtual Events
562,House District 03,"Froelich, Meg",Democratic,229.83,8/2/20 0:00,Act Blue,Somerville,MA,02144-0031,Bank Fees,Actblue Fees
563,House District 03,"Froelich, Meg",Democratic,250.0,8/3/20 0:00,Barbara  Scott,Denver,CO,80246,Other,Over Max Refund
564,House District 03,"Froelich, Meg",Democratic,100.0,8/3/20 0:00,Jared  Ingwalson,Littleton,CO,80123,Other,Over Max Refund
565,House District 03,"Froelich, Meg",Democratic,50.14,8/3/20 0:00,Office Depot,Denver,CO,80203,Office Equipment & Supplies,Labels
566,House District 03,"Froelich, Meg",Democratic,90.0,8/4/19 0:00,Amy  Schneider,Denver,CO,80205,Consultant & Professional Services,Constituent Services
567,House District 03,"Froelich, Meg",Democratic,60.0,8/6/20 0:00,Wix/Gmail,San Francisco,CA,94158,Office Equipment & Supplies,Wix Website Hosting
568,House District 03,"Froelich, Meg",Democratic,50.0,8/12/20 0:00,Robodial,Arlington,VA,22203,Office Equipment & Supplies,
569,House District 03,"Froelich, Meg",Democratic,3926.1,8/15/20 0:00,Nicoll  Mischel,Denver,CO,80203,Other,Payroll For Staff
570,House District 03,"Froelich, Meg",Democratic,400.0,8/17/20 0:00,United Veterans Coalition Of Colorado,Denver,CO,80306,Advertising,
571,House District 03,"Froelich, Meg",Democratic,149.0,8/17/20 0:00,Phone Burner,Laguna Beach,CA,92651,Other,Phone Software For Phone Banks
572,House District 03,"Froelich, Meg",Democratic,70.44,8/20/20 0:00,Office Depot,Denver,CO,80203,Office Equipment & Supplies,Labels
573,House District 03,"Froelich, Meg",Democratic,65.37,8/21/20 0:00,Office Depot,Denver,CO,80203,Office Equipment & Supplies,
574,House District 03,"Froelich, Meg",Democratic,1126.06,8/21/20 0:00,C&D Printing,Denver,CO,80212,Office Equipment & Supplies,Walk Pieces Lit
575,House District 03,"Froelich, Meg",Democratic,1222.65,8/26/20 0:00,The Blue Deal,Annandale,VA,22003,Other,Yard Signs
576,House District 03,"Froelich, Meg",Democratic,2500.0,8/27/20 0:00,Christian  Reisbeck,Littleton,CO,80127,Other,Payroll
577,House District 03,"Froelich, Meg",Democratic,452.64,9/8/20 0:00,Act Blue,Somerville,MA,02144-0031,Bank Fees,Actblue Fees
578,House District 03,"Froelich, Meg",Democratic,400.0,9/8/20 0:00,Nancy  Norton,Lafayette,CO,80026,Miscellaneous,Speaker Fee
579,House District 03,"Froelich, Meg",Democratic,300.0,9/8/20 0:00,Aimee  Resnick,Centennial,CO,80112,Employee Services,
580,House District 03,"Froelich, Meg",Democratic,50.0,9/15/20 0:00,Robodial,Arlington,VA,22203,Miscellaneous,Software
581,House District 03,"Froelich, Meg",Democratic,3926.1,9/15/20 0:00,Nicoll  Mischel,Denver,CO,80203,Employee Services,
582,House District 03,"Froelich, Meg",Democratic,197.04,9/16/20 0:00,Actblue,Somerville,MA,2411,Fundraising Expenses,
583,House District 03,"Froelich, Meg",Democratic,2500.0,9/27/20 0:00,Christian  Reisbeck,Littleton,CO,80127,Other,Payroll
584,House District 03,"Froelich, Meg",Democratic,10000.0,9/29/20 0:00,Boulder Strategies,Boulder,CO,80302,Consultant & Professional Services,Digital
585,House District 03,"Froelich, Meg",Democratic,-10000.0,9/29/20 0:00,Boulder Strategies,Boulder,CO,80302,Consultant & Professional Services,Offset Due To Update Of Filed Item - Digital
586,House District 03,"Froelich, Meg",Democratic,10000.0,9/29/20 0:00,Boulder Strategies,Boulder,CO,80302,Consultant & Professional Services,Digital
587,House District 03,"Froelich, Meg",Democratic,112.49,9/30/20 0:00,Actblue,Somerville,MA,2411,Bank Fees,Actblue Fees
588,House District 03,"Froelich, Meg",Democratic,238.28,10/1/20 0:00,Egan Printing,Denver,CO,80204,Office Equipment & Supplies,Bre'S
589,House District 03,"Froelich, Meg",Democratic,21738.0,10/1/20 0:00,Superior Blue,Woodbridge,VA,22192,Office Equipment & Supplies,Mailers
590,House District 03,"Froelich, Meg",Democratic,25.69,10/6/19 0:00,Act Blue,Somerville,MA,02144-0031,Bank Fees,
591,House District 03,"Froelich, Meg",Democratic,26.35,10/12/20 0:00,Unite State Postal Service,Englewood,CO,80113,Office Equipment & Supplies,
592,House District 03,"Froelich, Meg",Democratic,32.3,10/12/20 0:00,Einsteins Bros Bagels,Englewood,CO,80113,"Food, Beverages and Meals",Bagels For Labour Group/Lit Walk
593,House District 03,"Froelich, Meg",Democratic,21.16,10/13/19 0:00,Act Blue,Somerville,MA,02144-0031,Bank Fees,
594,House District 03,"Froelich, Meg",Democratic,230.64,10/14/20 0:00,Actblue,Somerville,MA,2411,Bank Fees,Actblue Fees
595,House District 03,"Froelich, Meg",Democratic,7119.63,10/15/20 0:00,Superior Blue,Woodbridge,VA,22192,Advertising,Mailing
596,House District 03,"Froelich, Meg",Democratic,3866.6,10/15/20 0:00,Nicoll  Mischel,Denver,CO,80203,Other,Payroll
597,House District 03,"Froelich, Meg",Democratic,149.0,10/19/20 0:00,Phone Burner,Laguna Beach,CA,92651,Office Equipment & Supplies,Phone Software For Voter Calls
598,House District 03,"Froelich, Meg",Democratic,1600.0,10/20/20 0:00,Brightstar Strategies,Grand Junction,CO,81507,Consultant & Professional Services,Video Service
599,House District 03,"Froelich, Meg",Democratic,75.0,10/20/20 0:00,Jo  Frederic,Greenwood Village,CO,80121,Other,Reattribution
600,House District 03,"Froelich, Meg",Democratic,9.88,10/27/19 0:00,Act Blue,Somerville,MA,02144-0031,Bank Fees,
601,House District 03,"Froelich, Meg",Democratic,500.0,10/28/19 0:00,Gena  Ozols,Denver,CO,80209,Consultant & Professional Services,Fundraising Planning & Data Assistance
602,House District 03,"Froelich, Meg",Democratic,2500.0,10/28/20 0:00,Christian  Reisbeck,Littleton,CO,80127,Other,Payroll
603,House District 03,"Froelich, Meg",Democratic,28.65,10/29/20 0:00,Voodoo Donuts,Denver,CO,80218,"Food, Beverages and Meals",Meal For Campaign
604,House District 03,"Froelich, Meg",Democratic,42.51,10/29/20 0:00,Actblue,Somerville,MA,2411,Bank Fees,Actblues Fees
605,House District 03,"Froelich, Meg",Democratic,131.37,10/29/20 0:00,Usps,Englewood,CO,80110,Office Equipment & Supplies,Stamps
606,House District 03,"Froelich, Meg",Democratic,2.97,11/3/19 0:00,Act Blue,Somerville,MA,02144-0031,Bank Fees,
607,House District 03,"Froelich, Meg",Democratic,42.41,11/3/20 0:00,Whole Foods,Denver,CO,,"Food, Beverages and Meals",
608,House District 03,"Froelich, Meg",Democratic,4.76,11/5/19 0:00,Act Blue,Somerville,MA,02144-0031,Bank Fees,
609,House District 03,"Froelich, Meg",Democratic,500.0,11/11/19 0:00,Gena  Ozols,Denver,CO,80209,Consultant & Professional Services,
610,House District 03,"Froelich, Meg",Democratic,3875.55,11/13/20 0:00,Nicoll  Mischel,Denver,CO,80203,Employee Services,Campaign Staff
611,House District 03,"Froelich, Meg",Democratic,2500.0,11/21/20 0:00,Christian  Reisbeck,Littleton,CO,80127,Employee Services,
612,House District 03,"Froelich, Meg",Democratic,300.0,11/21/20 0:00,Aimee  Resnick,Centennial,CO,80112,Consultant & Professional Services,
613,House District 03,"Froelich, Meg",Democratic,500.0,11/21/20 0:00,Corinne  O'Doherty,Greenwood Village,CO,80111,Employee Services,
614,House District 03,"Froelich, Meg",Democratic,1000.0,11/25/19 0:00,Trublu Politics,Ellicott City,MD,21042,Consultant & Professional Services,Data Services
615,House District 03,"Froelich, Meg",Democratic,0.8,11/25/19 0:00,Act Blue,Somerville,MA,02144-0031,Bank Fees,
616,House District 03,"Froelich, Meg",Democratic,470.07,11/25/19 0:00,Egan Printing,Denver,CO,80204,Office Equipment & Supplies,
617,House District 03,"Froelich, Meg",Democratic,55.0,11/27/20 0:00,Usps,Englewood,CO,80110,Other,Postage
618,House District 03,"Froelich, Meg",Democratic,23.96,11/30/20 0:00,Act Blue,Somerville,MA,02144-0031,Fundraising Expenses,
619,House District 03,"Froelich, Meg",Democratic,2.4,12/1/19 0:00,Act Blue,Somerville,MA,02144-0031,Bank Fees,
620,House District 03,"Froelich, Meg",Democratic,26.0,12/8/19 0:00,Act Blue,Somerville,MA,02144-0031,Bank Fees,
621,House District 03,"Froelich, Meg",Democratic,1000.0,12/10/19 0:00,Trublu Politics,Baltimore,MD,21201,Consultant & Professional Services,
622,House District 03,"Froelich, Meg",Democratic,7.92,12/15/19 0:00,Act Blue,Somerville,MA,02144-0031,Bank Fees,
623,House District 03,"Froelich, Meg",Democratic,470.07,12/22/19 0:00,Egan Printing,Denver,CO,80204,Office Equipment & Supplies,Printing Letterhead & Envelopes
624,House District 03,"Froelich, Meg",Democratic,17.78,12/22/19 0:00,Act Blue,Somerville,MA,02144-0031,Bank Fees,
625,House District 03,"Froelich, Meg",Democratic,16.79,12/31/19 0:00,Act Blue,Somerville,MA,02144-0031,Bank Fees,
626,House District 03,"Froelich, Meg",Democratic,15.0,12/31/19 0:00,Us Bank,Littleton,CO,80122,Bank Fees,
627,House District 03,"Froelich, Meg",Democratic,137.34,12/31/19 0:00,Act Blue,Somerville,MA,02144-0031,Bank Fees,
628,House District 03,"Jurist, David",Libertarian,,,,,,,,
629,House District 04,"Gonzales-Gutierrez, Serena",Democratic,369.67,1/2/19 0:00,Wayfair,Boston,MA,2116,Other,Furniture
630,House District 04,"Gonzales-Gutierrez, Serena",Democratic,1.54,1/2/19 0:00,Amazon,Seattle,WA,98109,Office Equipment & Supplies,
631,House District 04,"Gonzales-Gutierrez, Serena",Democratic,1457.26,1/3/19 0:00,Best Buy,Lakewood,CO,80226,Office Equipment & Supplies,
632,House District 04,"Gonzales-Gutierrez, Serena",Democratic,217.63,1/7/19 0:00,Amazon,Seattle,WA,98109,Office Equipment & Supplies,
633,House District 04,"Gonzales-Gutierrez, Serena",Democratic,162.2,1/8/19 0:00,Colorado For All,Littleton,CO,80161,Contributions,
634,House District 04,"Gonzales-Gutierrez, Serena",Democratic,191.83,1/9/19 0:00,Office Depot,Denver,CO,80203,Office Equipment & Supplies,
635,House District 04,"Gonzales-Gutierrez, Serena",Democratic,2.0,1/10/19 0:00,Denver Public Works,Denver,CO,80223,Other,Parking Meter
636,House District 04,"Gonzales-Gutierrez, Serena",Democratic,45.14,1/14/19 0:00,La Casita,Denver,CO,80211,"Food, Beverages and Meals",
637,House District 04,"Gonzales-Gutierrez, Serena",Democratic,59.5,1/15/19 0:00,Pat  Lombardi,Lafayette,CO,80026,Consultant & Professional Services,
638,House District 04,"Gonzales-Gutierrez, Serena",Democratic,4.64,1/16/19 0:00,The Spring Cafe,Denver,CO,80203,"Food, Beverages and Meals",
639,House District 04,"Gonzales-Gutierrez, Serena",Democratic,240.0,1/16/19 0:00,Andres  Carrera,Lone Tree,CO,80124,Employee Services,
640,House District 04,"Gonzales-Gutierrez, Serena",Democratic,10.18,1/18/19 0:00,Shish Kabob Grill,Denver,CO,80203,"Food, Beverages and Meals",
641,House District 04,"Gonzales-Gutierrez, Serena",Democratic,236.12,1/18/19 0:00,Lifestyle Photography,Arvada,CO,80005,Other,Photography
642,House District 04,"Gonzales-Gutierrez, Serena",Democratic,136.06,1/22/19 0:00,Target,Edgewater,CO,80214,Office Equipment & Supplies,
643,House District 04,"Gonzales-Gutierrez, Serena",Democratic,21.35,1/24/19 0:00,Fork And Spoon,Denver,CO,80203,"Food, Beverages and Meals",
644,House District 04,"Gonzales-Gutierrez, Serena",Democratic,10.78,1/28/19 0:00,Shish Kabob Grill,Denver,CO,80203,"Food, Beverages and Meals",
645,House District 04,"Gonzales-Gutierrez, Serena",Democratic,43.18,1/30/19 0:00,Office Depot,Denver,CO,80203,Office Equipment & Supplies,
646,House District 04,"Gonzales-Gutierrez, Serena",Democratic,14.32,1/30/19 0:00,The Spring Cafe,Denver,CO,80203,"Food, Beverages and Meals",
647,House District 04,"Gonzales-Gutierrez, Serena",Democratic,3.77,1/31/19 0:00,Capitol Cafe,Denver,CO,80202,"Food, Beverages and Meals",
648,House District 04,"Gonzales-Gutierrez, Serena",Democratic,7.35,2/1/19 0:00,Capitol Hill Liquors,Denver,CO,80218,"Food, Beverages and Meals",
649,House District 04,"Gonzales-Gutierrez, Serena",Democratic,3.99,2/1/19 0:00,King Soopers,Denver,CO,80218,"Food, Beverages and Meals",
650,House District 04,"Gonzales-Gutierrez, Serena",Democratic,12.36,2/1/19 0:00,Argonaut Wine And Liquor,Denver,CO,80203,"Food, Beverages and Meals",
651,House District 04,"Gonzales-Gutierrez, Serena",Democratic,5.18,2/1/19 0:00,The Spring Cafe,Denver,CO,80203,"Food, Beverages and Meals",
652,House District 04,"Gonzales-Gutierrez, Serena",Democratic,11.02,2/4/19 0:00,Starbucks,Denver,CO,80204,"Food, Beverages and Meals",
653,House District 04,"Gonzales-Gutierrez, Serena",Democratic,148.28,2/4/19 0:00,Etai'S Food,Denver,CO,80221,"Food, Beverages and Meals",
654,House District 04,"Gonzales-Gutierrez, Serena",Democratic,14.2,2/4/19 0:00,City Grille,Denver,CO,80203,"Food, Beverages and Meals",
655,House District 04,"Gonzales-Gutierrez, Serena",Democratic,2.0,2/4/19 0:00,Market River Falls,River Falls,WI,54022,Gifts,
656,House District 04,"Gonzales-Gutierrez, Serena",Democratic,9.98,2/6/19 0:00,King Soopers,Denver,CO,80218,"Food, Beverages and Meals",
657,House District 04,"Gonzales-Gutierrez, Serena",Democratic,5.72,2/6/19 0:00,The Spring Cafe,Denver,CO,80203,"Food, Beverages and Meals",
658,House District 04,"Gonzales-Gutierrez, Serena",Democratic,184.12,2/13/19 0:00,Costco,Arvada,CO,80002,Office Equipment & Supplies,
659,House District 04,"Gonzales-Gutierrez, Serena",Democratic,13.66,2/14/19 0:00,Starbucks,Denver,CO,80204,"Food, Beverages and Meals",
660,House District 04,"Gonzales-Gutierrez, Serena",Democratic,14.69,2/14/19 0:00,Tokyo Joes,Denver,CO,80203,"Food, Beverages and Meals",
661,House District 04,"Gonzales-Gutierrez, Serena",Democratic,10.49,2/15/19 0:00,Hai Hais,Denver,CO,80246,Other,Parking
662,House District 04,"Gonzales-Gutierrez, Serena",Democratic,179.0,2/15/19 0:00,Andres  Carrera,Lone Tree,CO,80124,Employee Services,
663,House District 04,"Gonzales-Gutierrez, Serena",Democratic,14.2,2/19/19 0:00,Starbucks,Denver,CO,80204,"Food, Beverages and Meals",
664,House District 04,"Gonzales-Gutierrez, Serena",Democratic,10.78,2/22/19 0:00,Shish Kabob Grill,Denver,CO,80203,"Food, Beverages and Meals",
665,House District 04,"Gonzales-Gutierrez, Serena",Democratic,6.99,2/22/19 0:00,The Spring Cafe,Denver,CO,80203,"Food, Beverages and Meals",
666,House District 04,"Gonzales-Gutierrez, Serena",Democratic,8.56,2/25/19 0:00,City And County Of Denver,Denver,CO,80202,Other,Parking
667,House District 04,"Gonzales-Gutierrez, Serena",Democratic,33.46,2/26/19 0:00,Colorado Women'S Legislative Breakfast,Denver,CO,80203,"Food, Beverages and Meals",Legislative Breakfast
668,House District 04,"Gonzales-Gutierrez, Serena",Democratic,14.97,2/28/19 0:00,King Soopers,Denver,CO,80218,"Food, Beverages and Meals",
669,House District 04,"Gonzales-Gutierrez, Serena",Democratic,110.98,3/1/19 0:00,Santiagos Mexican,Denver,CO,80204,"Food, Beverages and Meals",
670,House District 04,"Gonzales-Gutierrez, Serena",Democratic,5.78,3/4/19 0:00,Starbucks,Denver,CO,80204,"Food, Beverages and Meals",
671,House District 04,"Gonzales-Gutierrez, Serena",Democratic,10.55,3/8/19 0:00,King Soopers,Denver,CO,80218,"Food, Beverages and Meals",
672,House District 04,"Gonzales-Gutierrez, Serena",Democratic,8.91,3/8/19 0:00,Quiznos,Denver,CO,80203,"Food, Beverages and Meals",
673,House District 04,"Gonzales-Gutierrez, Serena",Democratic,155.0,3/8/19 0:00,Andres  Carrera,Lone Tree,CO,80124,Employee Services,
674,House District 04,"Gonzales-Gutierrez, Serena",Democratic,21.65,3/11/19 0:00,Quiznos,Denver,CO,80203,"Food, Beverages and Meals",
675,House District 04,"Gonzales-Gutierrez, Serena",Democratic,14.2,3/15/19 0:00,City Grille,Denver,CO,80203,"Food, Beverages and Meals",
676,House District 04,"Gonzales-Gutierrez, Serena",Democratic,2.0,3/18/19 0:00,Market River Falls,River Falls,WI,54022,Other,Fee
677,House District 04,"Gonzales-Gutierrez, Serena",Democratic,9.72,3/21/19 0:00,Starbucks,Denver,CO,80204,"Food, Beverages and Meals",
678,House District 04,"Gonzales-Gutierrez, Serena",Democratic,7.06,3/21/19 0:00,Capitol Cafe,Denver,CO,80202,"Food, Beverages and Meals",
679,House District 04,"Gonzales-Gutierrez, Serena",Democratic,49.25,3/21/19 0:00,La Casita,Denver,CO,80211,"Food, Beverages and Meals",
680,House District 04,"Gonzales-Gutierrez, Serena",Democratic,150.0,3/21/19 0:00,Colorado Democratic Party,Denver,CO,80203,"Food, Beverages and Meals",
681,House District 04,"Gonzales-Gutierrez, Serena",Democratic,41.0,3/26/19 0:00,Fork And Spoon,Denver,CO,80203,"Food, Beverages and Meals",
682,House District 04,"Gonzales-Gutierrez, Serena",Democratic,9.91,3/28/19 0:00,King Soopers,Denver,CO,80218,"Food, Beverages and Meals",
683,House District 04,"Gonzales-Gutierrez, Serena",Democratic,2.38,3/30/19 0:00,Actblue Technical Services,Cambridge,MA,2238,Bank Fees,
684,House District 04,"Gonzales-Gutierrez, Serena",Democratic,24.0,3/30/19 0:00,First Bank,Denver,CO,80211,Bank Fees,
685,House District 04,"Gonzales-Gutierrez, Serena",Democratic,76.0,3/30/19 0:00,Zoho Corporation,Pleasanton,CA,94588,Other,On Demand Software
686,House District 04,"Gonzales-Gutierrez, Serena",Democratic,5.81,4/1/19 0:00,Burger King,Denver,CO,80204,"Food, Beverages and Meals",
687,House District 04,"Gonzales-Gutierrez, Serena",Democratic,6.32,4/1/19 0:00,Starbucks,Denver,CO,80204,"Food, Beverages and Meals",
688,House District 04,"Gonzales-Gutierrez, Serena",Democratic,211.5,4/2/19 0:00,Andres  Carrera,Lone Tree,CO,80124,Employee Services,
689,House District 04,"Gonzales-Gutierrez, Serena",Democratic,250.0,4/2/19 0:00,Denver Democratic Central Committee,Denver,CO,80209,"Food, Beverages and Meals",
690,House District 04,"Gonzales-Gutierrez, Serena",Democratic,6.53,4/2/19 0:00,The Spring Cafe,Denver,CO,80203,"Food, Beverages and Meals",
691,House District 04,"Gonzales-Gutierrez, Serena",Democratic,150.0,4/2/19 0:00,Colorado Democratic Party,Denver,CO,80203,"Food, Beverages and Meals",
692,House District 04,"Gonzales-Gutierrez, Serena",Democratic,23.68,4/3/19 0:00,Shish Kabob Grill,Denver,CO,80203,"Food, Beverages and Meals",
693,House District 04,"Gonzales-Gutierrez, Serena",Democratic,9.18,4/4/19 0:00,Starbucks,Denver,CO,80204,"Food, Beverages and Meals",
694,House District 04,"Gonzales-Gutierrez, Serena",Democratic,83.99,4/4/19 0:00,Capitol Pizza,Denver,CO,80203,"Food, Beverages and Meals",
695,House District 04,"Gonzales-Gutierrez, Serena",Democratic,28.76,4/5/19 0:00,City Grille,Denver,CO,80203,"Food, Beverages and Meals",
696,House District 04,"Gonzales-Gutierrez, Serena",Democratic,15.41,4/8/19 0:00,Fork And Spoon,Denver,CO,80203,"Food, Beverages and Meals",
697,House District 04,"Gonzales-Gutierrez, Serena",Democratic,11.88,4/8/19 0:00,Pho-Natic,Denver,CO,80203,"Food, Beverages and Meals",
698,House District 04,"Gonzales-Gutierrez, Serena",Democratic,6.21,4/10/19 0:00,The Spring Cafe,Denver,CO,80203,"Food, Beverages and Meals",
699,House District 04,"Gonzales-Gutierrez, Serena",Democratic,2.0,4/10/19 0:00,Market River Falls,River Falls,WI,54022,"Food, Beverages and Meals",
700,House District 04,"Gonzales-Gutierrez, Serena",Democratic,6.4,4/15/19 0:00,City O City,Denver,CO,80203,"Food, Beverages and Meals",
701,House District 04,"Gonzales-Gutierrez, Serena",Democratic,15.41,4/15/19 0:00,Fork And Spoon,Denver,CO,80203,"Food, Beverages and Meals",
702,House District 04,"Gonzales-Gutierrez, Serena",Democratic,12.0,4/16/19 0:00,Panera Bread,Denver,CO,80211,"Food, Beverages and Meals",
703,House District 04,"Gonzales-Gutierrez, Serena",Democratic,22.41,4/17/19 0:00,City O City,Denver,CO,80203,"Food, Beverages and Meals",
704,House District 04,"Gonzales-Gutierrez, Serena",Democratic,19.0,4/17/19 0:00,Zoho Corporation,Pleasanton,CA,94588,Other,Crm Software
705,House District 04,"Gonzales-Gutierrez, Serena",Democratic,36.18,4/17/19 0:00,Capitol Pizza,Denver,CO,80203,"Food, Beverages and Meals",
706,House District 04,"Gonzales-Gutierrez, Serena",Democratic,11.26,4/18/19 0:00,City O City,Denver,CO,80203,"Food, Beverages and Meals",
707,House District 04,"Gonzales-Gutierrez, Serena",Democratic,14.88,4/18/19 0:00,Einstein Brothers Bagels,Denver,CO,80202,"Food, Beverages and Meals",
708,House District 04,"Gonzales-Gutierrez, Serena",Democratic,13.15,4/19/19 0:00,City O City,Denver,CO,80203,"Food, Beverages and Meals",
709,House District 04,"Gonzales-Gutierrez, Serena",Democratic,9.37,4/19/19 0:00,The Spring Cafe,Denver,CO,80203,"Food, Beverages and Meals",
710,House District 04,"Gonzales-Gutierrez, Serena",Democratic,13.2,4/22/19 0:00,La Abeja,Denver,CO,80203,"Food, Beverages and Meals",
711,House District 04,"Gonzales-Gutierrez, Serena",Democratic,5.67,4/23/19 0:00,The Spring Cafe,Denver,CO,80203,"Food, Beverages and Meals",
712,House District 04,"Gonzales-Gutierrez, Serena",Democratic,12.67,4/23/19 0:00,King Soopers,Denver,CO,80218,"Food, Beverages and Meals",
713,House District 04,"Gonzales-Gutierrez, Serena",Democratic,27.23,4/23/19 0:00,Target,Edgewater,CO,80214,Office Equipment & Supplies,
714,House District 04,"Gonzales-Gutierrez, Serena",Democratic,15.0,4/23/19 0:00,Great Wall Chinese,Denver,CO,80203,"Food, Beverages and Meals",
715,House District 04,"Gonzales-Gutierrez, Serena",Democratic,25.15,4/24/19 0:00,Capitol Market,Denver,CO,80203,"Food, Beverages and Meals",
716,House District 04,"Gonzales-Gutierrez, Serena",Democratic,162.43,4/24/19 0:00,La Casita,Denver,CO,80211,"Food, Beverages and Meals",
717,House District 04,"Gonzales-Gutierrez, Serena",Democratic,14.2,4/25/19 0:00,City Grille,Denver,CO,80203,"Food, Beverages and Meals",
718,House District 04,"Gonzales-Gutierrez, Serena",Democratic,9.66,4/26/19 0:00,The Spring Cafe,Denver,CO,80203,"Food, Beverages and Meals",
719,House District 04,"Gonzales-Gutierrez, Serena",Democratic,73.42,4/29/19 0:00,Santiagos Mexican,Denver,CO,80204,"Food, Beverages and Meals",
720,House District 04,"Gonzales-Gutierrez, Serena",Democratic,10.96,5/1/19 0:00,Arepas House,Denver,CO,80202,"Food, Beverages and Meals",
721,House District 04,"Gonzales-Gutierrez, Serena",Democratic,5.97,5/1/19 0:00,The Spring Cafe,Denver,CO,80203,"Food, Beverages and Meals",
722,House District 04,"Gonzales-Gutierrez, Serena",Democratic,10.37,5/2/19 0:00,Starbucks,Denver,CO,80204,"Food, Beverages and Meals",
723,House District 04,"Gonzales-Gutierrez, Serena",Democratic,8.0,5/2/19 0:00,Market River Falls,River Falls,WI,54022,"Food, Beverages and Meals",
724,House District 04,"Gonzales-Gutierrez, Serena",Democratic,5.67,5/2/19 0:00,The Spring Cafe,Denver,CO,80203,"Food, Beverages and Meals",
725,House District 04,"Gonzales-Gutierrez, Serena",Democratic,200.0,5/2/19 0:00,Andres  Carrera,Lone Tree,CO,80124,Employee Services,
726,House District 04,"Gonzales-Gutierrez, Serena",Democratic,14.04,5/3/19 0:00,Goldie'S Food Truck,Denver,CO,80202,"Food, Beverages and Meals",
727,House District 04,"Gonzales-Gutierrez, Serena",Democratic,2.26,5/6/19 0:00,Safeway,Denver,CO,80211,"Food, Beverages and Meals",
728,House District 04,"Gonzales-Gutierrez, Serena",Democratic,100.0,5/13/19 0:00,Naleo Educational Fund,Los Angeles,CA,90015,Contributions,
729,House District 04,"Gonzales-Gutierrez, Serena",Democratic,19.0,5/17/19 0:00,Zoho Corporation,Pleasanton,CA,94588,Other,Crm Software
730,House District 04,"Gonzales-Gutierrez, Serena",Democratic,104.86,5/28/19 0:00,Taqueria Patzcuaro,Denver,CO,80211,"Food, Beverages and Meals",
731,House District 04,"Gonzales-Gutierrez, Serena",Democratic,200.0,6/6/19 0:00,Servicios De La Raza,Denver,CO,80204,Contributions,
732,House District 04,"Gonzales-Gutierrez, Serena",Democratic,102.5,6/6/19 0:00,Andres  Carrera,Lone Tree,CO,80124,Employee Services,
733,House District 04,"Gonzales-Gutierrez, Serena",Democratic,70.0,6/17/19 0:00,One Colorado,Denver,CO,80218,Contributions,
734,House District 04,"Gonzales-Gutierrez, Serena",Democratic,19.0,6/17/19 0:00,Zoho Corporation,Pleasanton,CA,94588,Other,Crm Software
735,House District 04,"Gonzales-Gutierrez, Serena",Democratic,100.0,6/21/19 0:00,The Council Of State Governments,Sacramento,CA,95814,Other,Membership
736,House District 04,"Gonzales-Gutierrez, Serena",Democratic,18.0,6/30/19 0:00,First Bank,Denver,CO,80211,Bank Fees,
737,House District 04,"Gonzales-Gutierrez, Serena",Democratic,3.0,6/30/19 0:00,Hai Hais,Denver,CO,80204,Office Equipment & Supplies,
738,House District 04,"Gonzales-Gutierrez, Serena",Democratic,13.55,7/5/19 0:00,Amazon,Seattle,WA,98109,Office Equipment & Supplies,
739,House District 04,"Gonzales-Gutierrez, Serena",Democratic,19.0,7/17/19 0:00,Zoho Corporation,Pleasanton,CA,94588,Other,Web Software
740,House District 04,"Gonzales-Gutierrez, Serena",Democratic,17.11,7/23/19 0:00,The Spring Cafe,Denver,CO,80203,"Food, Beverages and Meals",
741,House District 04,"Gonzales-Gutierrez, Serena",Democratic,11.98,8/5/19 0:00,Ares Travel,San Diego,CA,92106,Travel & Lodging,
742,House District 04,"Gonzales-Gutierrez, Serena",Democratic,943.96,8/5/19 0:00,Southwest Airlines,Dallas,TX,75235,Travel & Lodging,
743,House District 04,"Gonzales-Gutierrez, Serena",Democratic,13.55,8/5/19 0:00,Amazon,Seattle,WA,98109,Office Equipment & Supplies,
744,House District 04,"Gonzales-Gutierrez, Serena",Democratic,20.45,8/6/19 0:00,Lyft,San Francisco,CA,94107,Travel & Lodging,
745,House District 04,"Gonzales-Gutierrez, Serena",Democratic,12.2,8/6/19 0:00,Lyft,San Francisco,CA,94107,Travel & Lodging,
746,House District 04,"Gonzales-Gutierrez, Serena",Democratic,8.83,8/7/19 0:00,Lyft,San Francisco,CA,94107,Travel & Lodging,
747,House District 04,"Gonzales-Gutierrez, Serena",Democratic,8.22,8/7/19 0:00,Lyft,San Francisco,CA,94107,Travel & Lodging,
748,House District 04,"Gonzales-Gutierrez, Serena",Democratic,929.27,8/9/19 0:00,Dream Nashville Hotel,Nashville,TN,37219,Travel & Lodging,
749,House District 04,"Gonzales-Gutierrez, Serena",Democratic,50.0,8/15/19 0:00,Emerge Colorado,Denver,CO,80246,Contributions,
750,House District 04,"Gonzales-Gutierrez, Serena",Democratic,19.0,8/19/19 0:00,Zoho Corporation,Pleasanton,CA,94588,Other,Web Software
751,House District 04,"Gonzales-Gutierrez, Serena",Democratic,13.55,9/5/19 0:00,Amazon,Seattle,WA,98109,Office Equipment & Supplies,
752,House District 04,"Gonzales-Gutierrez, Serena",Democratic,19.0,9/17/19 0:00,Zoho Corporation,Pleasanton,CA,94588,Other,Web Software
753,House District 04,"Gonzales-Gutierrez, Serena",Democratic,18.0,9/30/19 0:00,First Bank,Denver,CO,80211,Bank Fees,From Statement
754,House District 04,"Gonzales-Gutierrez, Serena",Democratic,100.0,12/17/18 0:00,Colleen  Merrill,Thornton,CO,80602,Consultant & Professional Services,
755,House District 04,"Gonzales-Gutierrez, Serena",Democratic,1000.0,12/18/18 0:00,Cllaro,Denver,CO,80239,Contributions,
756,House District 04,"Gonzales-Gutierrez, Serena",Democratic,73.17,12/24/18 0:00,Office Depot,Denver,CO,80203,Office Equipment & Supplies,
757,House District 04,"Gonzales-Gutierrez, Serena",Democratic,353.57,12/24/18 0:00,Walgreens,Denver,CO,80246,Office Equipment & Supplies,
758,House District 04,"Gonzales-Gutierrez, Serena",Democratic,320.0,12/24/18 0:00,Usps,Denver,CO,80212,Other,Postage
759,House District 04,"Gonzales-Gutierrez, Serena",Democratic,55.67,12/24/18 0:00,Panera Bread,Denver,CO,80211,"Food, Beverages and Meals",
760,House District 04,"Gonzales-Gutierrez, Serena",Democratic,375.0,12/28/18 0:00,Andres  Carrera,Lone Tree,CO,80124,Employee Services,
761,House District 04,"Gonzales-Gutierrez, Serena",Democratic,10.2,12/31/18 0:00,Rosales Bakery,Denver,CO,80211,"Food, Beverages and Meals",
762,House District 04,"Gonzales-Gutierrez, Serena",Democratic,25.6,12/31/18 0:00,Starbucks,Denver,CO,80204,"Food, Beverages and Meals",
763,House District 04,"Gonzales-Gutierrez, Serena",Democratic,123.85,12/31/18 0:00,Target,Arvada,CO,80033,Office Equipment & Supplies,
764,House District 04,"Gonzales-Gutierrez, Serena",Democratic,7.21,1/6/20 0:00,Common Grounds,Denver,CO,80211,"Food, Beverages and Meals",
765,House District 04,"Gonzales-Gutierrez, Serena",Democratic,10.48,1/6/20 0:00,Starbucks,Denver,CO,80204,"Food, Beverages and Meals",
766,House District 04,"Gonzales-Gutierrez, Serena",Democratic,49.72,1/6/20 0:00,Amazon,Seattle,WA,98109,Office Equipment & Supplies,
767,House District 04,"Gonzales-Gutierrez, Serena",Democratic,73.01,1/6/20 0:00,Best Buy,Lakewood,CO,80226,Office Equipment & Supplies,
768,House District 04,"Gonzales-Gutierrez, Serena",Democratic,13.55,1/6/20 0:00,Amazon,Seattle,WA,98109,Office Equipment & Supplies,
769,House District 04,"Gonzales-Gutierrez, Serena",Democratic,150.0,1/6/20 0:00,Colleen  Merrill,Thornton,CO,80602,Consultant & Professional Services,
770,House District 04,"Gonzales-Gutierrez, Serena",Democratic,6.42,1/9/20 0:00,Joe Maxx,Denver,CO,80204,"Food, Beverages and Meals",
771,House District 04,"Gonzales-Gutierrez, Serena",Democratic,9.56,1/9/20 0:00,Zoup,Denver,CO,80202,"Food, Beverages and Meals",
772,House District 04,"Gonzales-Gutierrez, Serena",Democratic,54.85,1/10/20 0:00,Racines,Denver,CO,80202,"Food, Beverages and Meals",
773,House District 04,"Gonzales-Gutierrez, Serena",Democratic,14.47,1/13/20 0:00,Shish Kabob Grill,Denver,CO,80203,"Food, Beverages and Meals",
774,House District 04,"Gonzales-Gutierrez, Serena",Democratic,2.75,1/13/20 0:00,32 Market,River Falls,WI,54022,"Food, Beverages and Meals",
775,House District 04,"Gonzales-Gutierrez, Serena",Democratic,29.35,1/13/20 0:00,Target,Edgewater,CO,80214,Office Equipment & Supplies,
776,House District 04,"Gonzales-Gutierrez, Serena",Democratic,10.26,1/13/20 0:00,The Spring Cafe,Denver,CO,80203,"Food, Beverages and Meals",
777,House District 04,"Gonzales-Gutierrez, Serena",Democratic,10.46,1/15/20 0:00,Lyft,San Francisco,CA,94107,Travel & Lodging,
778,House District 04,"Gonzales-Gutierrez, Serena",Democratic,5.78,1/16/20 0:00,The Spring Cafe,Denver,CO,80203,"Food, Beverages and Meals",
779,House District 04,"Gonzales-Gutierrez, Serena",Democratic,19.0,1/17/20 0:00,Zoho Corporation,Pleasanton,CA,94588,Rent & Utilities,
780,House District 04,"Gonzales-Gutierrez, Serena",Democratic,10.8,1/21/20 0:00,Starbucks,Denver,CO,80204,"Food, Beverages and Meals",
781,House District 04,"Gonzales-Gutierrez, Serena",Democratic,13.19,1/21/20 0:00,Whittier,Denver,CO,80205,"Food, Beverages and Meals",
782,House District 04,"Gonzales-Gutierrez, Serena",Democratic,20.14,1/24/20 0:00,City Grille,Denver,CO,80203,"Food, Beverages and Meals",
783,House District 04,"Gonzales-Gutierrez, Serena",Democratic,164.55,1/27/20 0:00,La Casita,Denver,CO,80211,Fundraising Expenses,
784,House District 04,"Gonzales-Gutierrez, Serena",Democratic,11.64,1/27/20 0:00,King Soopers,Denver,CO,80218,Fundraising Expenses,
785,House District 04,"Gonzales-Gutierrez, Serena",Democratic,18.35,1/27/20 0:00,Rosales Bakery,Denver,CO,80211,"Food, Beverages and Meals",
786,House District 04,"Gonzales-Gutierrez, Serena",Democratic,10.04,1/27/20 0:00,The Spring Cafe,Denver,CO,80203,"Food, Beverages and Meals",
787,House District 04,"Gonzales-Gutierrez, Serena",Democratic,55.97,1/28/20 0:00,Office Depot,Denver,CO,80202,Office Equipment & Supplies,
788,House District 04,"Gonzales-Gutierrez, Serena",Democratic,5.24,1/29/20 0:00,Starbucks,Denver,CO,80204,"Food, Beverages and Meals",
789,House District 04,"Gonzales-Gutierrez, Serena",Democratic,38.8,1/29/20 0:00,Pho-Natic,Denver,CO,80203,"Food, Beverages and Meals",
790,House District 04,"Gonzales-Gutierrez, Serena",Democratic,5.0,1/30/20 0:00,Market River Falls,River Falls,WI,54022,"Food, Beverages and Meals",
791,House District 04,"Gonzales-Gutierrez, Serena",Democratic,11.39,1/31/20 0:00,Starbucks,Denver,CO,80204,"Food, Beverages and Meals",
792,House District 04,"Gonzales-Gutierrez, Serena",Democratic,24.38,1/31/20 0:00,Strong Smart Denver,Denver,CO,80203,"Food, Beverages and Meals",
793,House District 04,"Gonzales-Gutierrez, Serena",Democratic,13.55,2/5/20 0:00,Amazon,Seattle,WA,98109,Office Equipment & Supplies,
794,House District 04,"Gonzales-Gutierrez, Serena",Democratic,2.54,2/6/20 0:00,Tokyo Joes,Denver,CO,80203,"Food, Beverages and Meals",
795,House District 04,"Gonzales-Gutierrez, Serena",Democratic,18.25,2/7/20 0:00,Starbucks,Denver,CO,80204,"Food, Beverages and Meals",
796,House District 04,"Gonzales-Gutierrez, Serena",Democratic,13.5,2/7/20 0:00,Tokyo Joes,Denver,CO,80203,"Food, Beverages and Meals",
797,House District 04,"Gonzales-Gutierrez, Serena",Democratic,62.67,2/10/20 0:00,City Grille,Denver,CO,80203,"Food, Beverages and Meals",
798,House District 04,"Gonzales-Gutierrez, Serena",Democratic,22.6,2/10/20 0:00,Rosales Bakery,Denver,CO,80211,"Food, Beverages and Meals",
799,House District 04,"Gonzales-Gutierrez, Serena",Democratic,34.0,2/10/20 0:00,Panera Bread,Denver,CO,80211,"Food, Beverages and Meals",
800,House District 04,"Gonzales-Gutierrez, Serena",Democratic,60.0,2/10/20 0:00,Miquel  Ojeda,Denver,CO,80203,Employee Services,
801,House District 04,"Gonzales-Gutierrez, Serena",Democratic,19.17,2/14/20 0:00,Starbucks,Denver,CO,80204,"Food, Beverages and Meals",
802,House District 04,"Gonzales-Gutierrez, Serena",Democratic,10.79,2/14/20 0:00,Shish Kabob Grill,Denver,CO,80203,"Food, Beverages and Meals",
803,House District 04,"Gonzales-Gutierrez, Serena",Democratic,11.02,2/18/20 0:00,Starbucks,Denver,CO,80204,"Food, Beverages and Meals",
804,House District 04,"Gonzales-Gutierrez, Serena",Democratic,19.0,2/18/20 0:00,Zoho Corporation,Pleasanton,CA,94588,Rent & Utilities,
805,House District 04,"Gonzales-Gutierrez, Serena",Democratic,8.59,2/19/20 0:00,Parsley,Denver,CO,80204,"Food, Beverages and Meals",
806,House District 04,"Gonzales-Gutierrez, Serena",Democratic,3.0,2/20/20 0:00,Hai Hais,Denver,CO,80204,Travel & Lodging,
807,House District 04,"Gonzales-Gutierrez, Serena",Democratic,19.42,2/24/20 0:00,Fork And Spoon,Denver,CO,80203,"Food, Beverages and Meals",
808,House District 04,"Gonzales-Gutierrez, Serena",Democratic,2.19,2/24/20 0:00,Usps,Denver,CO,80211,Office Equipment & Supplies,
809,House District 04,"Gonzales-Gutierrez, Serena",Democratic,2.0,2/25/20 0:00,Hai Hais,Denver,CO,80204,"Food, Beverages and Meals",
810,House District 04,"Gonzales-Gutierrez, Serena",Democratic,5.35,2/26/20 0:00,Starbucks,Denver,CO,80204,"Food, Beverages and Meals",
811,House District 04,"Gonzales-Gutierrez, Serena",Democratic,2.0,2/26/20 0:00,Hai Hais,Denver,CO,80204,"Food, Beverages and Meals",
812,House District 04,"Gonzales-Gutierrez, Serena",Democratic,9.45,2/27/20 0:00,Subculture,Denver,CO,80203,"Food, Beverages and Meals",
813,House District 04,"Gonzales-Gutierrez, Serena",Democratic,491.12,2/28/20 0:00,Pat  Lombardi,Lafayette,CO,80026,Consultant & Professional Services,
814,House District 04,"Gonzales-Gutierrez, Serena",Democratic,13.23,2/28/20 0:00,Starbucks,Denver,CO,80204,"Food, Beverages and Meals",
815,House District 04,"Gonzales-Gutierrez, Serena",Democratic,4.0,2/28/20 0:00,Hai Hais,Denver,CO,80204,"Food, Beverages and Meals",
816,House District 04,"Gonzales-Gutierrez, Serena",Democratic,100.0,3/3/20 0:00,Colorado Democratic Party Political Committee,Denver,CO,80203,Contributions,
817,House District 04,"Gonzales-Gutierrez, Serena",Democratic,5.99,3/5/20 0:00,The Spring Cafe,Denver,CO,80203,"Food, Beverages and Meals",
818,House District 04,"Gonzales-Gutierrez, Serena",Democratic,16.24,3/5/20 0:00,Lost City,Denver,CO,80216,"Food, Beverages and Meals",
819,House District 04,"Gonzales-Gutierrez, Serena",Democratic,13.55,3/5/20 0:00,Amazon,Seattle,WA,98109,Office Equipment & Supplies,
820,House District 04,"Gonzales-Gutierrez, Serena",Democratic,9.99,3/6/20 0:00,Tokyo Joes,Denver,CO,80203,"Food, Beverages and Meals",
821,House District 04,"Gonzales-Gutierrez, Serena",Democratic,2.0,3/6/20 0:00,Market River Falls,River Falls,WI,54022,"Food, Beverages and Meals",
822,House District 04,"Gonzales-Gutierrez, Serena",Democratic,17.19,3/11/20 0:00,Parsley,Denver,CO,80204,"Food, Beverages and Meals",
823,House District 04,"Gonzales-Gutierrez, Serena",Democratic,2.0,3/11/20 0:00,Hai Hais,Denver,CO,80204,"Food, Beverages and Meals",
824,House District 04,"Gonzales-Gutierrez, Serena",Democratic,11.72,3/16/20 0:00,The Spring Cafe,Denver,CO,80203,"Food, Beverages and Meals",
825,House District 04,"Gonzales-Gutierrez, Serena",Democratic,17.34,3/16/20 0:00,Starbucks,Denver,CO,80204,"Food, Beverages and Meals",
826,House District 04,"Gonzales-Gutierrez, Serena",Democratic,19.0,3/17/20 0:00,Zoho Corporation,Pleasanton,CA,94588,Rent & Utilities,
827,House District 04,"Gonzales-Gutierrez, Serena",Democratic,13.55,4/6/20 0:00,Amazon,Seattle,WA,98109,Office Equipment & Supplies,
828,House District 04,"Gonzales-Gutierrez, Serena",Democratic,19.0,4/28/20 0:00,Zoho Corporation,Pleasanton,CA,94588,Rent & Utilities,
829,House District 04,"Gonzales-Gutierrez, Serena",Democratic,24.0,4/29/20 0:00,First Bank,Denver,CO,80211,Bank Fees,
830,House District 04,"Gonzales-Gutierrez, Serena",Democratic,11.86,4/29/20 0:00,Actblue Technical Services,Cambridge,MA,2238,Bank Fees,
831,House District 04,"Gonzales-Gutierrez, Serena",Democratic,250.0,4/30/20 0:00,Colorado Democratic Party Political Committee,Denver,CO,80203,Consultant & Professional Services,
832,House District 04,"Gonzales-Gutierrez, Serena",Democratic,500.0,4/30/20 0:00,House Democratic Majority Fund,Denver,CO,80218,Gifts,
833,House District 04,"Gonzales-Gutierrez, Serena",Democratic,6.0,5/1/20 0:00,First Bank,Denver,CO,80211,Bank Fees,
834,House District 04,"Gonzales-Gutierrez, Serena",Democratic,13.55,5/5/20 0:00,Amazon,Seattle,WA,98109,Office Equipment & Supplies,
835,House District 04,"Gonzales-Gutierrez, Serena",Democratic,19.0,5/18/20 0:00,Zoho Corporation,Pleasanton,CA,94588,Rent & Utilities,
836,House District 04,"Gonzales-Gutierrez, Serena",Democratic,1.19,5/18/20 0:00,Actblue Technical Services,Cambridge,MA,2238,Bank Fees,
837,House District 04,"Gonzales-Gutierrez, Serena",Democratic,11.23,5/28/20 0:00,Starbucks,Denver,CO,80204,"Food, Beverages and Meals",
838,House District 04,"Gonzales-Gutierrez, Serena",Democratic,6.0,6/1/20 0:00,First Bank,Denver,CO,80211,Bank Fees,
839,House District 04,"Gonzales-Gutierrez, Serena",Democratic,32.19,6/4/20 0:00,Chipotle,Denver,CO,80211,"Food, Beverages and Meals",
840,House District 04,"Gonzales-Gutierrez, Serena",Democratic,13.55,6/5/20 0:00,Amazon,Seattle,WA,98109,Office Equipment & Supplies,
841,House District 04,"Gonzales-Gutierrez, Serena",Democratic,1.58,6/7/20 0:00,Actblue,Somerville,MA,2144,Bank Fees,
842,House District 04,"Gonzales-Gutierrez, Serena",Democratic,6.43,6/11/20 0:00,Starbucks,Denver,CO,80204,"Food, Beverages and Meals",
843,House District 04,"Gonzales-Gutierrez, Serena",Democratic,20.8,6/12/20 0:00,Shish Kabob Grill,Denver,CO,80203,"Food, Beverages and Meals",
844,House District 04,"Gonzales-Gutierrez, Serena",Democratic,20.8,6/15/20 0:00,Capitol Market,Denver,CO,80203,"Food, Beverages and Meals",
845,House District 04,"Gonzales-Gutierrez, Serena",Democratic,6.64,6/15/20 0:00,Starbucks,Denver,CO,80204,"Food, Beverages and Meals",
846,House District 04,"Gonzales-Gutierrez, Serena",Democratic,19.0,6/17/20 0:00,Zoho Corporation,Pleasanton,CA,94588,Office Equipment & Supplies,
847,House District 04,"Gonzales-Gutierrez, Serena",Democratic,36.54,6/24/20 0:00,Actblue,Somerville,MA,2144,Bank Fees,
848,House District 04,"Gonzales-Gutierrez, Serena",Democratic,250.0,6/25/20 0:00,Denver Democratic Central Committee,Denver,CO,80209,Gifts,
849,House District 04,"Gonzales-Gutierrez, Serena",Democratic,6.0,7/1/20 0:00,First Bank,Denver,CO,80211,Bank Fees,
850,House District 04,"Gonzales-Gutierrez, Serena",Democratic,13.55,7/6/20 0:00,Amazon,Seattle,WA,98109,Office Equipment & Supplies,
851,House District 04,"Gonzales-Gutierrez, Serena",Democratic,19.0,7/17/20 0:00,Zoho Corporation,Pleasanton,CA,94588,Office Equipment & Supplies,
852,House District 04,"Gonzales-Gutierrez, Serena",Democratic,2.18,7/25/20 0:00,Actblue Technical Services,Cambridge,MA,2238,Bank Fees,
853,House District 04,"Gonzales-Gutierrez, Serena",Democratic,6.0,8/3/20 0:00,First Bank,Denver,CO,80211,Bank Fees,
854,House District 04,"Gonzales-Gutierrez, Serena",Democratic,13.55,8/5/20 0:00,Amazon,Seattle,WA,98109,Office Equipment & Supplies,
855,House District 04,"Gonzales-Gutierrez, Serena",Democratic,161.0,8/14/20 0:00,Usps,Denver,CO,80211,Office Equipment & Supplies,
856,House District 04,"Gonzales-Gutierrez, Serena",Democratic,19.0,8/17/20 0:00,Zoho Corporation,Pleasanton,CA,94588,Office Equipment & Supplies,
857,House District 04,"Gonzales-Gutierrez, Serena",Democratic,6.0,9/1/20 0:00,First Bank,Denver,CO,80211,Bank Fees,
858,House District 04,"Gonzales-Gutierrez, Serena",Democratic,43.67,9/1/20 0:00,Actblue Technical Services,Cambridge,MA,,Bank Fees,Actblue Fees
859,House District 04,"Gonzales-Gutierrez, Serena",Democratic,13.55,9/8/20 0:00,Amazon,Seattle,WA,98109,Office Equipment & Supplies,
860,House District 04,"Gonzales-Gutierrez, Serena",Democratic,8.89,9/15/20 0:00,Actblue,Somerville,MA,2144,Bank Fees,
861,House District 04,"Gonzales-Gutierrez, Serena",Democratic,19.0,9/17/20 0:00,Zoho Corporation,Pleasanton,CA,94588,Office Equipment & Supplies,
862,House District 04,"Gonzales-Gutierrez, Serena",Democratic,2000.0,9/18/20 0:00,Colorado Democratic Party Political Committee,Denver,CO,80203,Contributions,
863,House District 04,"Gonzales-Gutierrez, Serena",Democratic,75.0,9/21/20 0:00,Denver Democratic Central Committee,Denver,CO,80209,Donation for Independent Expenditures,
864,House District 04,"Gonzales-Gutierrez, Serena",Democratic,258.32,9/21/20 0:00,Emerge Colorado,Edgewater,CO,80214,Contributions,
865,House District 04,"Gonzales-Gutierrez, Serena",Democratic,25.89,9/30/20 0:00,Actblue,Somerville,MA,2144,Bank Fees,
866,House District 04,"Gonzales-Gutierrez, Serena",Democratic,6.0,10/1/20 0:00,First Bank,Denver,CO,80211,Bank Fees,
867,House District 04,"Gonzales-Gutierrez, Serena",Democratic,1350.0,10/1/20 0:00,Colorado Democratic Party Political Committee,Denver,CO,80203,Consultant & Professional Services,
868,House District 04,"Gonzales-Gutierrez, Serena",Democratic,13.55,10/5/20 0:00,Amazon,Seattle,WA,98109,Office Equipment & Supplies,
869,House District 04,"Gonzales-Gutierrez, Serena",Democratic,395.0,10/5/20 0:00,Pat  Lombardi,Lafayette,CO,80026,Consultant & Professional Services,
870,House District 04,"Gonzales-Gutierrez, Serena",Democratic,13.55,10/7/19 0:00,Amazon,Seattle,WA,98109,Office Equipment & Supplies,
871,House District 04,"Gonzales-Gutierrez, Serena",Democratic,260.0,10/7/19 0:00,Denver Democratic Central Committee,Denver,CO,80209,"Food, Beverages and Meals",
872,House District 04,"Gonzales-Gutierrez, Serena",Democratic,19.8,10/10/19 0:00,Rosales Bakery,Denver,CO,80211,"Food, Beverages and Meals",
873,House District 04,"Gonzales-Gutierrez, Serena",Democratic,105.0,10/12/19 0:00,Denver Democratic Central Committee,Denver,CO,80209,"Food, Beverages and Meals",
874,House District 04,"Gonzales-Gutierrez, Serena",Democratic,6.72,10/14/20 0:00,Actblue Technical Services,Cambridge,MA,2238,Bank Fees,
875,House District 04,"Gonzales-Gutierrez, Serena",Democratic,11.83,10/15/19 0:00,Starbucks,Denver,CO,80204,"Food, Beverages and Meals",
876,House District 04,"Gonzales-Gutierrez, Serena",Democratic,3905.46,10/20/20 0:00,"C&D Printing, Inc.",Denver,CO,80212,Fundraising Expenses,
877,House District 04,"Gonzales-Gutierrez, Serena",Democratic,18.36,10/25/19 0:00,Banano'S,Las Vegas,NV,89109,"Food, Beverages and Meals",
878,House District 04,"Gonzales-Gutierrez, Serena",Democratic,45.88,10/25/19 0:00,Trevi'S,Las Vegas,CO,89109,"Food, Beverages and Meals",
879,House District 04,"Gonzales-Gutierrez, Serena",Democratic,38.5,10/26/20 0:00,Usps,Denver,CO,80211,Office Equipment & Supplies,
880,House District 04,"Gonzales-Gutierrez, Serena",Democratic,18.84,10/28/19 0:00,A Cab Taxi,Las Vegas,NV,89101,Travel & Lodging,
881,House District 04,"Gonzales-Gutierrez, Serena",Democratic,10.48,11/1/19 0:00,Starbucks,Denver,CO,80204,"Food, Beverages and Meals",
882,House District 04,"Gonzales-Gutierrez, Serena",Democratic,6.0,11/2/20 0:00,First Bank,Denver,CO,80211,Bank Fees,
883,House District 04,"Gonzales-Gutierrez, Serena",Democratic,225.79,11/3/20 0:00,Pat  Lombardi,Lafayette,CO,80026,Consultant & Professional Services,
884,House District 04,"Gonzales-Gutierrez, Serena",Democratic,22.48,11/3/20 0:00,El Zerape,Denver,CO,80204,"Food, Beverages and Meals",
885,House District 04,"Gonzales-Gutierrez, Serena",Democratic,37.56,11/4/20 0:00,Javiers Diner,Denver,CO,80212,"Food, Beverages and Meals",
886,House District 04,"Gonzales-Gutierrez, Serena",Democratic,41.56,11/7/19 0:00,Pho-Natic,Denver,CO,80203,"Food, Beverages and Meals",
887,House District 04,"Gonzales-Gutierrez, Serena",Democratic,31.19,11/9/20 0:00,Amazon,Seattle,WA,98109,Office Equipment & Supplies,
888,House District 04,"Gonzales-Gutierrez, Serena",Democratic,150.0,11/12/19 0:00,Hugo  Quintana,Denver,CO,80212,"Food, Beverages and Meals",
889,House District 04,"Gonzales-Gutierrez, Serena",Democratic,5.41,11/12/19 0:00,Strong Smart Denver,Denver,CO,80203,Consultant & Professional Services,
890,House District 04,"Gonzales-Gutierrez, Serena",Democratic,6.97,11/13/19 0:00,The Spring Cafe,Denver,CO,80203,"Food, Beverages and Meals",
891,House District 04,"Gonzales-Gutierrez, Serena",Democratic,21.69,11/18/19 0:00,Fork And Spoon,Denver,CO,80203,"Food, Beverages and Meals",
892,House District 04,"Gonzales-Gutierrez, Serena",Democratic,16.11,11/20/19 0:00,Parsley,Denver,CO,80204,"Food, Beverages and Meals",
893,House District 04,"Gonzales-Gutierrez, Serena",Democratic,10.58,11/21/19 0:00,Starbucks,Denver,CO,80204,"Food, Beverages and Meals",
894,House District 04,"Gonzales-Gutierrez, Serena",Democratic,60.0,11/21/19 0:00,Denver Democratic Central Committee,Denver,CO,80209,"Food, Beverages and Meals",
895,House District 04,"Gonzales-Gutierrez, Serena",Democratic,12.21,11/22/19 0:00,Common Grounds,Denver,CO,80211,"Food, Beverages and Meals",
896,House District 04,"Gonzales-Gutierrez, Serena",Democratic,4.54,11/22/19 0:00,Prodigy Coffee,Denver,CO,80205,"Food, Beverages and Meals",
897,House District 04,"Gonzales-Gutierrez, Serena",Democratic,10.0,11/26/19 0:00,Wynkoop Garage,Denver,CO,80202,Other,Parking
898,House District 04,"Gonzales-Gutierrez, Serena",Democratic,8.77,11/26/19 0:00,Federal Coffee,Denver,CO,80211,"Food, Beverages and Meals",
899,House District 04,"Gonzales-Gutierrez, Serena",Democratic,1000.0,11/29/20 0:00,Gianina  Irlando,Denver,CO,80219,Consultant & Professional Services,
900,House District 04,"Gonzales-Gutierrez, Serena",Democratic,343.0,12/3/19 0:00,House Democrats,Denver,CO,80203,Travel & Lodging,
901,House District 04,"Gonzales-Gutierrez, Serena",Democratic,9.91,12/4/19 0:00,Strong Smart Denver,Denver,CO,80203,"Food, Beverages and Meals",
902,House District 04,"Gonzales-Gutierrez, Serena",Democratic,10.4,12/5/19 0:00,Subway,Denver,CO,80202,"Food, Beverages and Meals",
903,House District 04,"Gonzales-Gutierrez, Serena",Democratic,17.87,12/6/19 0:00,Squawk Coffee,Pueblo,CO,81003,"Food, Beverages and Meals",
904,House District 04,"Gonzales-Gutierrez, Serena",Democratic,9.61,12/6/19 0:00,Starbucks,Denver,CO,80204,"Food, Beverages and Meals",
905,House District 04,"Gonzales-Gutierrez, Serena",Democratic,10.0,12/9/19 0:00,Lyft,San Francisco,CA,94107,Travel & Lodging,
906,House District 04,"Gonzales-Gutierrez, Serena",Democratic,11.85,12/9/19 0:00,Shish Kabob Grill,Denver,CO,80203,"Food, Beverages and Meals",
907,House District 04,"Gonzales-Gutierrez, Serena",Democratic,13.12,12/9/19 0:00,Starbucks,Denver,CO,80204,"Food, Beverages and Meals",
908,House District 04,"Gonzales-Gutierrez, Serena",Democratic,18.96,12/9/19 0:00,Lyft,San Francisco,CA,94107,Travel & Lodging,
909,House District 04,"Gonzales-Gutierrez, Serena",Democratic,7.34,12/9/19 0:00,Starbucks,Denver,CO,80204,"Food, Beverages and Meals",
910,House District 04,"Gonzales-Gutierrez, Serena",Democratic,13.4,12/10/19 0:00,Strong Smart Denver,Denver,CO,80203,"Food, Beverages and Meals",
911,House District 04,"Gonzales-Gutierrez, Serena",Democratic,11.97,12/11/19 0:00,Panera Bread,Denver,CO,80211,"Food, Beverages and Meals",
912,House District 04,"Gonzales-Gutierrez, Serena",Democratic,6.54,12/11/19 0:00,Strong Smart Denver,Denver,CO,80203,"Food, Beverages and Meals",
913,House District 04,"Gonzales-Gutierrez, Serena",Democratic,6.1,12/16/19 0:00,Starbucks,Denver,CO,80204,"Food, Beverages and Meals",
914,House District 04,"Gonzales-Gutierrez, Serena",Democratic,13.61,12/17/19 0:00,Prodigy Coffee,Denver,CO,80205,"Food, Beverages and Meals",
915,House District 04,"Gonzales-Gutierrez, Serena",Democratic,18.06,12/18/19 0:00,Strong Smart Denver,Denver,CO,80203,"Food, Beverages and Meals",
916,House District 04,"Gonzales-Gutierrez, Serena",Democratic,6.78,12/18/19 0:00,11-Jul,Denver,CO,80202,"Food, Beverages and Meals",
917,House District 04,"Gonzales-Gutierrez, Serena",Democratic,283.28,12/19/19 0:00,Sloan'S Lake Tap And Burger,Denver,CO,80204,Fundraising Expenses,
918,House District 04,"Gonzales-Gutierrez, Serena",Democratic,1.02,12/20/19 0:00,Starbucks,Denver,CO,80204,"Food, Beverages and Meals",
919,House District 04,"Gonzales-Gutierrez, Serena",Democratic,17.42,12/20/19 0:00,Strong Smart Denver,Denver,CO,80203,"Food, Beverages and Meals",
920,House District 04,"Gonzales-Gutierrez, Serena",Democratic,5.86,12/20/19 0:00,Santiagos Mexican,Denver,CO,80204,"Food, Beverages and Meals",
921,House District 04,"Gonzales-Gutierrez, Serena",Democratic,8.24,12/23/19 0:00,Strong Smart Denver,Denver,CO,80203,"Food, Beverages and Meals",
922,House District 04,"Gonzales-Gutierrez, Serena",Democratic,9.71,12/23/19 0:00,Cuba Cuba,Denver,CO,80216,"Food, Beverages and Meals",
923,House District 04,"Gonzales-Gutierrez, Serena",Democratic,9.88,12/23/19 0:00,Strong Smart Denver,Denver,CO,80203,"Food, Beverages and Meals",
924,House District 04,"Gonzales-Gutierrez, Serena",Democratic,18.0,12/30/19 0:00,First Bank,Denver,CO,80211,Bank Fees,
925,House District 04,"Gonzales-Gutierrez, Serena",Democratic,57.0,12/30/19 0:00,Zoho Corporation,Pleasanton,CA,94588,Miscellaneous,Web/Internet Related
926,House District 04,"Gonzales-Gutierrez, Serena",Democratic,27.1,12/30/19 0:00,Amazon,Seattle,WA,98109,Office Equipment & Supplies,
927,House District 04,"Gonzales-Gutierrez, Serena",Democratic,70.76,12/30/19 0:00,Actblue,Somerville,MA,2144,Bank Fees,
928,House District 04,"Gonzales-Gutierrez, Serena",Democratic,500.0,12/31/19 0:00,House Majority Project (Fka) State Democratic House Campaign Fund,Denver,CO,80204,Donation for Independent Expenditures,
929,House District 04,"Price, Grant",Republican,3.0,7/31/20 0:00,Bbva,Birmingham,AL,35296,Bank Fees,June Paper Statement Fee
930,House District 04,"Price, Grant",Republican,15.0,8/15/20 0:00,Bbva,Birmingham,AL,35296,Bank Fees,August Monthly Service Charge
931,House District 04,"Price, Grant",Republican,3.0,8/17/20 0:00,Bbva,Birmingham,AL,35296,Bank Fees,July Paper Statement Fee
932,House District 04,"Price, Grant",Republican,15.0,8/17/20 0:00,Bbva,Birmingham,AL,35296,Bank Fees,July Monthly Service Charge
933,House District 04,"Price, Grant",Republican,-3.0,8/17/20 0:00,Bbva,Birmingham,AL,35296,Bank Fees,Offset Due To Update Of Filed Item - July Paper Statement Fee
934,House District 04,"Price, Grant",Republican,3.0,8/17/20 0:00,Bbva,Birmingham,AL,35296,Bank Fees,July Paper Statement Fee
935,House District 04,"Price, Grant",Republican,3.0,9/15/20 0:00,Bbva,Birmingham,AL,35296,Bank Fees,August Paper Statement Fee
936,House District 04,"Price, Grant",Republican,-3.0,9/15/20 0:00,Bbva,Birmingham,AL,35296,Bank Fees,Offset Due To Update Of Filed Item - August Paper Statement Fee
937,House District 04,"Price, Grant",Republican,3.0,9/15/20 0:00,Bbva,Birmingham,AL,35296,Bank Fees,August Paper Statement Fee
938,House District 04,"Price, Grant",Republican,3.0,11/6/20 0:00,Bbva,Birmingham,AL,35296,Bank Fees,Paper Statement Fee
939,House District 04,"Price, Grant",Republican,15.0,11/6/20 0:00,Bbva,Birmingham,AL,35296,Bank Fees,Monthly Service Charge
940,House District 04,"Price, Grant",Republican,43.0,11/14/20 0:00,District 4 Republicans,Denver,CO,80212,Other,Contribution For Denver House District 4 Republicans
941,House District 05,"Richardson, Joseph",Unity Party,,,,,,,,
942,House District 05,"Woodley, Jonathan",Republican,50.0,4/14/20 0:00,Facebook,Menlo Park,CA,94025,Advertising,
943,House District 05,"Woodley, Jonathan",Republican,12.41,6/9/20 0:00,Walgreens,Denver,CO,80202,Office Equipment & Supplies,Supplies From Walgreens
944,House District 05,"Woodley, Jonathan",Republican,30.64,6/9/20 0:00,Silco Fuel,Denver,CO,,Travel & Lodging,Silco/Sinclair
945,House District 05,"Woodley, Jonathan",Republican,30.68,6/15/20 0:00,Park & Co,Denver,CO,80203,"Food, Beverages and Meals",Strategy Lunch
946,House District 05,"Woodley, Jonathan",Republican,87.82,7/14/20 0:00,Facebook,Menlo Park,CA,94025,Advertising,Facebook Ads.
947,House District 05,"Woodley, Jonathan",Republican,31.02,7/29/20 0:00,Rialto,Denver,CO,80202,"Food, Beverages and Meals",Campaign Lunch Meeting.
948,House District 05,"Woodley, Jonathan",Republican,73.62,8/25/20 0:00,Safeway,Denver,CO,80209,"Food, Beverages and Meals",Supplies For Fundraising.
949,House District 05,"Woodley, Jonathan",Republican,25.0,8/26/20 0:00,Lincoln Club,Denver,CO,80203,Fundraising Expenses,Luncheon
950,House District 05,"Woodley, Jonathan",Republican,25.0,8/26/20 0:00,Lincoln Club,Denver,CO,80203,Donation for Independent Expenditures,
951,House District 05,"Woodley, Jonathan",Republican,29.33,8/26/20 0:00,Silco Fuel,Denver,CO,,Travel & Lodging,Fuel
952,House District 05,"Woodley, Jonathan",Republican,30.27,8/28/20 0:00,Max Grill,Denver,CO,80209,Fundraising Expenses,
953,House District 05,"Woodley, Jonathan",Republican,5.0,8/28/20 0:00,Warwick Hotel,Denver,CO,80203,Travel & Lodging,Parking
954,House District 05,"Woodley, Jonathan",Republican,10.0,8/31/20 0:00,Wells Fargo,Denver,CO,80265,Bank Fees,
955,House District 05,"Woodley, Jonathan",Republican,46.81,8/31/20 0:00,Argonauts,Denver,CO,80203,"Food, Beverages and Meals",
956,House District 05,"Woodley, Jonathan",Republican,42.0,9/3/20 0:00,Evato.Com,Melbourne,CO,0,Advertising,Digital Media
957,House District 05,"Woodley, Jonathan",Republican,31.0,9/3/20 0:00,Great Wall,Denver,CO,80203,"Food, Beverages and Meals",Meeting Meal
958,House District 05,"Woodley, Jonathan",Republican,127.48,9/13/20 0:00,Facebook,Menlo Park,CA,94025,Advertising,Ad Cost
959,House District 05,"Woodley, Jonathan",Republican,97.76,10/2/20 0:00,Brown Palace,Denver,CO,80202,Fundraising Expenses,
960,House District 05,"Woodley, Jonathan",Republican,29.37,10/2/20 0:00,Argonauts,Denver,CO,80203,Fundraising Expenses,
961,House District 05,"Woodley, Jonathan",Republican,44.65,10/5/20 0:00,Revv,Gurgaon,IN,231,Other,Donation Site
962,House District 05,"Woodley, Jonathan",Republican,33.29,10/5/20 0:00,Great Wall,Denver,CO,80203,"Food, Beverages and Meals",
963,House District 05,"Woodley, Jonathan",Republican,69.0,10/10/20 0:00,The Grizzly Rose,Denver,CO,80216,Entertainment,Political Networking
964,House District 05,"Woodley, Jonathan",Republican,14.3,10/13/20 0:00,Jimmy Johns,Denver,CO,80202,"Food, Beverages and Meals",
965,House District 05,"Woodley, Jonathan",Republican,180.21,10/14/20 0:00,Facebook,Menlo Park,CA,94025,Advertising,
966,House District 05,"Woodley, Jonathan",Republican,105.0,10/15/20 0:00,Wells Fargo,Denver,CO,80265,Bank Fees,
967,House District 05,"Woodley, Jonathan",Republican,11.75,10/16/20 0:00,Chik-Fila,Denver,CO,80246,"Food, Beverages and Meals",
968,House District 05,"Woodley, Jonathan",Republican,13.5,10/18/20 0:00,Taco Bell,Denver,CO,80209,"Food, Beverages and Meals",
969,House District 05,"Woodley, Jonathan",Republican,60.13,10/19/20 0:00,Walgreens,Denver,CO,80202,Office Equipment & Supplies,
970,House District 05,"Woodley, Jonathan",Republican,400.0,10/20/20 0:00,Samantha  Koch,Denver,CO,80205,Contributions,
971,House District 05,"Woodley, Jonathan",Republican,85.65,10/20/20 0:00,Safeway,Denver,CO,80209,Fundraising Expenses,
972,House District 05,"Woodley, Jonathan",Republican,31.93,10/20/20 0:00,Great Wall,Denver,CO,80203,"Food, Beverages and Meals",
973,House District 05,"Woodley, Jonathan",Republican,26.0,10/22/20 0:00,Metro Cleaners,Denver,CO,80223,Miscellaneous,Dry Clean
974,House District 05,"Woodley, Jonathan",Republican,10.14,10/23/20 0:00,Popeyes,Denver,CO,80206,"Food, Beverages and Meals",
975,House District 05,"Woodley, Jonathan",Republican,50.0,10/26/20 0:00,Starry,New York,NY,10038,Rent & Utilities,Internet
976,House District 05,"Woodley, Jonathan",Republican,15.98,10/26/20 0:00,Silco Fuel,Denver,CO,,Travel & Lodging,Fuel
977,House District 05,"Woodley, Jonathan",Republican,43.18,10/30/20 0:00,Argonauts,Denver,CO,80203,Fundraising Expenses,
978,House District 05,"Woodley, Jonathan",Republican,10.0,10/30/20 0:00,Wells Fargo,Denver,CO,80265,Bank Fees,
979,House District 05,"Woodley, Jonathan",Republican,17.56,10/30/20 0:00,Godaddy,Scottsdale,AZ,85260,Office Equipment & Supplies,Software
980,House District 05,"Woodley, Jonathan",Republican,43.18,10/30/20 0:00,Argonauts,Denver,CO,80203,"Food, Beverages and Meals",
981,House District 05,"Woodley, Jonathan",Republican,9.85,11/2/20 0:00,Google,Mountain View,CA,94043,Advertising,
982,House District 05,"Woodley, Jonathan",Republican,49.0,11/2/20 0:00,Revv,Gurgaon,IN,231,Advertising,Revv
983,House District 05,"Woodley, Jonathan",Republican,10.79,11/2/20 0:00,Popeyes,Denver,CO,80206,"Food, Beverages and Meals",
984,House District 05,"Woodley, Jonathan",Republican,13.29,11/3/20 0:00,Silco Fuel,Denver,CO,,Travel & Lodging,
985,House District 05,"Woodley, Jonathan",Republican,79.99,11/9/20 0:00,Godaddy,Scottsdale,AZ,85260,Office Equipment & Supplies,Web Services
986,House District 05,"Woodley, Jonathan",Republican,126.04,11/19/20 0:00,Tmobile,,CO,,Telephone,
987,House District 05,"Woodley, Jonathan",Republican,50.0,11/23/20 0:00,Starry,New York,NY,10038,Miscellaneous,Wifi
988,House District 05,"Valdez, Alex",Democratic,10.0,1/2/19 0:00,Google Inc,"Mountain View,",CA,94043,Consultant & Professional Services,
989,House District 05,"Valdez, Alex",Democratic,500.0,1/2/19 0:00,Rebecca  Christensen,Denver,CO,80202,Consultant & Professional Services,
990,House District 05,"Valdez, Alex",Democratic,4.0,1/31/19 0:00,First Bank,"Lakewood,",CO,80215,Bank Fees,
991,House District 05,"Valdez, Alex",Democratic,500.0,2/1/19 0:00,Rebecca  Christensen,Denver,CO,80202,Consultant & Professional Services,
992,House District 05,"Valdez, Alex",Democratic,52.16,2/1/19 0:00,Mailchimp,Atlanta,GA,30308,Consultant & Professional Services,
993,House District 05,"Valdez, Alex",Democratic,10.0,2/1/19 0:00,Google Inc,"Mountain View,",CA,94043,Consultant & Professional Services,
994,House District 05,"Valdez, Alex",Democratic,9.95,2/11/19 0:00,Canva,,,,Consultant & Professional Services,
995,House District 05,"Valdez, Alex",Democratic,149.26,2/12/19 0:00,"Squarespace, Inc.",New York,NY,10014,Consultant & Professional Services,
996,House District 05,"Valdez, Alex",Democratic,4.0,2/28/19 0:00,First Bank,"Lakewood,",CO,80215,Bank Fees,
997,House District 05,"Valdez, Alex",Democratic,52.16,3/1/19 0:00,Mailchimp,Atlanta,GA,30308,Consultant & Professional Services,
998,House District 05,"Valdez, Alex",Democratic,10.0,3/1/19 0:00,Google Inc,"Mountain View,",CA,94043,Consultant & Professional Services,
999,House District 05,"Valdez, Alex",Democratic,500.0,3/7/19 0:00,Rebecca  Christensen,Denver,CO,80202,Consultant & Professional Services,
1000,House District 05,"Valdez, Alex",Democratic,9.95,3/11/19 0:00,Canva,,,,Consultant & Professional Services,
